{"text_format":"1","workbook":"xlsx","n_sheets":8,"sheets":["Instructions","Claim Entry Example","Claim Totals Example","Claim Entry","Claim Totals","sponsor dropdowns","BATB Reqd","Subgrants"],"not_rendered":{"charts":0,"images":0,"macros":1,"external_links":0,"defined_names":19,"comments":2,"pivot_tables":0},"unopened":[],"bounds":{"document_bytes":16777216,"sheet_cells":100000,"rows_first":2000,"rows_last":500,"rows_between":2000,"halvings":0,"cell_chars":16384,"cell_head_chars":4096},"cells_cut":0,"cells_raw":0,"read":"whole","date_system":"1900"}

{"sheet":"Instructions","index":0,"n_rows":27,"n_cols":3,"rows_kept":27,"cut":false,"hidden":false,"merged":[]}
[]
[null,"Instructions for Completing BAtB Equipment Grant Claim Form"]
[null,null,"This claim form has replaced the previous Word document claim form.  The purpose of the form is to provided for a more efficient and accurate claim reporting, better tracking tool, and less cumbersome submissions. "]
[null,"CLAIM ENTRY EXAMPLE AND CLAIM TOTALS EXAMPLE TABS"]
[null,null,"Please review these tabs as a guide for entering information into the \"claim entry\" tab. Do not enter your invoice and claim information on these tabs. "]
[null,"CLAIM ENTRY TAB"]
[null,1,"Columns I-K, Row 2 - Sponsor Name: Click on the “drop down” button to select your sponsor’s name.  Once this is selected, a list of your BAtB sites will be displayed in blue.  If you see an additional site or a site that is missing, please contact ode.schoolnutrition@ode.oregon.gov indicating the correction needed.   "]
[null,2,"Column G - Claim Date: This is the date that you will be submitting this document for ODE CNP approval.  It may be possible that you will use the same date on multiple rows for the different equipment on the invoice(s).  The spreadsheet will group the equipment costs per site by the identifying claim date.  "]
[null,3,"Columns H-K - Equipment/Invoice Information:  Using your invoice as a reference, enter the vendor, invoice number, invoice date, and each equipment item.  If you have multiple items, you can copy and paste the claim date, vendor, invoice number, and invoice date to several rows.  If you don’t have some of this information, you may leave some cells blank.  "]
[null,4,"Column L - Reason:  Please use the drop down to indicate how this product will be used for Breakfast After the Bell.  If one of the reasons from the drop-down doesn’t apply, you can enter your own reason in the blank cell."]
[null,5,"Column M and after - Enter the equipment amount for each site.  If you purchased multiple pieces of the same equipment item, you can enter this on same row for the equipment and then the cost of each piece under each site.  If you purchased one piece of equipment that will be used for multiple sites, you can enter the amount you want applied to each site.  The total amount on the form cannot be more than the piece of equipment shown on the invoice."]
[null,6,"After the first claim has been submitted and processed,  you may want to purchase additional equipment and submit another claim.   You can enter your information in the next row.  Again, please don’t forget to enter the same date for each claim submitted for approval"]
[null,null,"CNP Use Only"]
[null,null,"The “CNP Use Only” is a hidden section, You can view this by clicking on the +(plus)  button from the left top bar.  (Click)  Please do not make any edits to this section.  This is for viewing only to check the claims that have been approved, processed through EGMS and to check if any corrections are needed. "]
[null,"CLAIM TOTALS TAB"]
[null,"1.","This sheet autopopulates from the Claim Entry Form.  The cells are locked and will provide information for each site's subgrant of the following: "]
[null,null,"a. The eligible site and identifying EGMS subgrant number. "]
[null,null,"b. Amount allocated for each site during performance period. "]
[null,null,"c. Totals by site and the remaining amound available to claim"]
[null,null,"b. The total of amount of the claim for all sites and date submitted for approval."]
[null,null,"c. Each claim by site."]
[]
[null,"SUBMISSION INSTRUCTIONS"]
[null,"1.","Purchase, repair, renovate, or upgrade the necessary equipment by June 30, 2027"]
[null,"2.","Email the completed BAtB Equipment  Grant Claim form and invoice for each site to ode.schoolnutrition@ode.oregon.gov.  Include in the subject line of the email, \"BAtB Equipment Grant Reimbursement - (Sponsor Name)"]
[null,"3.","After approval, enter claims through the Electronic Grant Management System (EGMS)"]
[null,"4.","Complete the claims process no later than July 10, 2027."]

{"sheet":"Claim Entry Example","index":1,"n_rows":54,"n_cols":15,"rows_kept":54,"cut":false,"hidden":false,"merged":[[1,8,1,10]]}
[]
[null,null,null,null,null,null,null,"Sponsor Name","Wild Things Unified School District"]
["CNP USE ONLY",null,null,null,null,null,null,null,null,null,null,null,{"$f":"IF(\n    OR('Claim Entry Example'!I2=\"\",'Claim Entry Example'!I2=\"Select Sponsor\"),\n    \"\",\n    TRANSPOSE(_xlfn.UNIQUE(_xlfn._xlws.FILTER('sponsor dropdowns'!J:K,'sponsor dropdowns'!I:I='Claim Entry Example'!I2)))\n)","v":90001},90002,90003]
["Comments","TOTAL","Total Claim Amount","ODE Approved","Dated Processed in EGMS","Claim No.","Claim\nDate","Vendor","Invoice\nNumber","Invoice\nDate","Equipment Item","Reason\n(Select primary reason or enter your own)","Max's Island Elementary School","Rumpus Middle School","Crown & Scepter High School "]
[null,{"$f":"IFERROR(\n    _xlfn.LET(\n        _xlpm.spill,_xlfn.ANCHORARRAY( $M$3),\n        _xlpm.rowData, _xlfn.TAKE(_xlfn.DROP('Claim Entry Example'!5:5,,12), , COLUMNS(_xlpm.spill)),\n        SUM(_xlfn._xlws.FILTER(_xlpm.rowData, ISNUMBER(_xlpm.rowData)))\n    ),\n\"\")","v":94.679999999999993},{"$f":"SUMIFS($B$5:$B$54,F5:F54,F5:F54)","v":2969.5},"2025-10-12","2025-10-13",{"$f":"IF(G5=\"\",\"\",_xlfn.LET(_xlpm.d,$G$5:G5,COUNT(_xlfn.UNIQUE(_xlpm.d))))","v":1},"2025-10-09","Bargreen",1001,"2025-09-09","Can opener","Prepare or serve food",31.56,31.56,31.56]
[null,{"$f":"IFERROR(\n    _xlfn.LET(\n        _xlpm.spill,_xlfn.ANCHORARRAY( $M$3),\n        _xlpm.rowData, _xlfn.TAKE(_xlfn.DROP('Claim Entry Example'!6:6,,12), , COLUMNS(_xlpm.spill)),\n        SUM(_xlfn._xlws.FILTER(_xlpm.rowData, ISNUMBER(_xlpm.rowData)))\n    ),\n\"\")","v":17.73},2969.5,"2025-10-12","2025-10-13",{"$f":"IF(G6=\"\",\"\",_xlfn.LET(_xlpm.d,$G$5:G6,COUNT(_xlfn.UNIQUE(_xlpm.d))))","v":1},"2025-10-09","Bargreen",1001,"2025-09-09","Paring knife","Prepare or serve food",5.91,5.91,5.91]
[null,{"$f":"IFERROR(\n    _xlfn.LET(\n        _xlpm.spill,_xlfn.ANCHORARRAY( $M$3),\n        _xlpm.rowData, _xlfn.TAKE(_xlfn.DROP('Claim Entry Example'!7:7,,12), , COLUMNS(_xlpm.spill)),\n        SUM(_xlfn._xlws.FILTER(_xlpm.rowData, ISNUMBER(_xlpm.rowData)))\n    ),\n\"\")","v":879.30000000000007},2969.5,"2025-10-12","2025-10-13",{"$f":"IF(G7=\"\",\"\",_xlfn.LET(_xlpm.d,$G$5:G7,COUNT(_xlfn.UNIQUE(_xlpm.d))))","v":1},"2025-10-09","Bargreen",1001,"2025-09-09","Market Trays","Prepare or serve food",293.10000000000002,293.10000000000002,293.10000000000002]
[null,{"$f":"IFERROR(\n    _xlfn.LET(\n        _xlpm.spill,_xlfn.ANCHORARRAY( $M$3),\n        _xlpm.rowData, _xlfn.TAKE(_xlfn.DROP('Claim Entry Example'!8:8,,12), , COLUMNS(_xlpm.spill)),\n        SUM(_xlfn._xlws.FILTER(_xlpm.rowData, ISNUMBER(_xlpm.rowData)))\n    ),\n\"\")","v":1977.79},2969.5,"2025-10-12","2025-10-13",{"$f":"IF(G8=\"\",\"\",_xlfn.LET(_xlpm.d,$G$5:G8,COUNT(_xlfn.UNIQUE(_xlpm.d))))","v":1},"2025-10-09","Amazon",888,"09/20.25","Small Wares","Prepare or serve food",643.33000000000004,650.42999999999995,684.03]
[null,{"$f":"IFERROR(\n    _xlfn.LET(\n        _xlpm.spill,_xlfn.ANCHORARRAY( $M$3),\n        _xlpm.rowData, _xlfn.TAKE(_xlfn.DROP('Claim Entry Example'!9:9,,12), , COLUMNS(_xlpm.spill)),\n        SUM(_xlfn._xlws.FILTER(_xlpm.rowData, ISNUMBER(_xlpm.rowData)))\n    ),\n\"\")","v":299.99},317.72000000000003,"2025-11-03","2025-11-04",{"$f":"IF(G9=\"\",\"\",_xlfn.LET(_xlpm.d,$G$5:G9,COUNT(_xlfn.UNIQUE(_xlpm.d))))","v":2},"2025-10-31","Webstore",999,"2025-10-01","Immersion Hand Mixer ","Prepare or serve food",78.33,78.33,143.33000000000001]
[null,{"$f":"IFERROR(\n    _xlfn.LET(\n        _xlpm.spill,_xlfn.ANCHORARRAY( $M$3),\n        _xlpm.rowData, _xlfn.TAKE(_xlfn.DROP('Claim Entry Example'!10:10,,12), , COLUMNS(_xlpm.spill)),\n        SUM(_xlfn._xlws.FILTER(_xlpm.rowData, ISNUMBER(_xlpm.rowData)))\n    ),\n\"\")","v":17.73},317.72000000000003,"2025-11-03","2025-11-04",{"$f":"IF(G10=\"\",\"\",_xlfn.LET(_xlpm.d,$G$5:G10,COUNT(_xlfn.UNIQUE(_xlpm.d))))","v":2},"2025-10-31","Webstore",999,"2025-10-01","Paring knife","Prepare or serve food",5.91,5.91,5.91]
[null,{"$f":"IFERROR(\n    _xlfn.LET(\n        _xlpm.spill,_xlfn.ANCHORARRAY( $M$3),\n        _xlpm.rowData, _xlfn.TAKE(_xlfn.DROP('Claim Entry Example'!11:11,,12), , COLUMNS(_xlpm.spill)),\n        SUM(_xlfn._xlws.FILTER(_xlpm.rowData, ISNUMBER(_xlpm.rowData)))\n    ),\n\"\")","v":879.30000000000007},2249.89,"2025-11-17","2025-11-17",{"$f":"IF(G11=\"\",\"\",_xlfn.LET(_xlpm.d,$G$5:G11,COUNT(_xlfn.UNIQUE(_xlpm.d))))","v":3},"2025-11-15","Webstore",999,"2025-11-01","Market Trays","Prepare or serve food",293.10000000000002,293.10000000000002,293.10000000000002]
[null,{"$f":"IFERROR(\n    _xlfn.LET(\n        _xlpm.spill,_xlfn.ANCHORARRAY( $M$3),\n        _xlpm.rowData, _xlfn.TAKE(_xlfn.DROP('Claim Entry Example'!12:12,,12), , COLUMNS(_xlpm.spill)),\n        SUM(_xlfn._xlws.FILTER(_xlpm.rowData, ISNUMBER(_xlpm.rowData)))\n    ),\n\"\")","v":100},2249.89,"2025-11-17","2025-11-17",{"$f":"IF(G12=\"\",\"\",_xlfn.LET(_xlpm.d,$G$5:G12,COUNT(_xlfn.UNIQUE(_xlpm.d))))","v":3},"2025-11-15","Webstore",999,"2025-11-01","Salad Bar Legs","Transporting food to service area",0,100,0]
["Over claim amount - sent back for corrections",{"$f":"IFERROR(\n    _xlfn.LET(\n        _xlpm.spill,_xlfn.ANCHORARRAY( $M$3),\n        _xlpm.rowData, _xlfn.TAKE(_xlfn.DROP('Claim Entry Example'!13:13,,12), , COLUMNS(_xlpm.spill)),\n        SUM(_xlfn._xlws.FILTER(_xlpm.rowData, ISNUMBER(_xlpm.rowData)))\n    ),\n\"\")","v":1270.5899999999999},2249.89,"2025-11-17","2025-11-17",{"$f":"IF(G13=\"\",\"\",_xlfn.LET(_xlpm.d,$G$5:G13,COUNT(_xlfn.UNIQUE(_xlpm.d))))","v":3},"2025-11-15","Webstaurant",1000,"2025-11-03","Breakfast Cart","Transporting food to service area",1270.5899999999999,0,0]
[null,{"$f":"IFERROR(\n    _xlfn.LET(\n        _xlpm.spill,_xlfn.ANCHORARRAY( $M$3),\n        _xlpm.rowData, _xlfn.TAKE(_xlfn.DROP('Claim Entry Example'!14:14,,12), , COLUMNS(_xlpm.spill)),\n        SUM(_xlfn._xlws.FILTER(_xlpm.rowData, ISNUMBER(_xlpm.rowData)))\n    ),\n\"\")","v":""},0,null,null,{"$f":"IF(G14=\"\",\"\",_xlfn.LET(_xlpm.d,$G$5:G14,COUNT(_xlfn.UNIQUE(_xlpm.d))))","v":""}]
[null,{"$f":"IFERROR(\n    _xlfn.LET(\n        _xlpm.spill,_xlfn.ANCHORARRAY( $M$3),\n        _xlpm.rowData, _xlfn.TAKE(_xlfn.DROP('Claim Entry Example'!15:15,,12), , COLUMNS(_xlpm.spill)),\n        SUM(_xlfn._xlws.FILTER(_xlpm.rowData, ISNUMBER(_xlpm.rowData)))\n    ),\n\"\")","v":""},0,null,null,{"$f":"IF(G15=\"\",\"\",_xlfn.LET(_xlpm.d,$G$5:G15,COUNT(_xlfn.UNIQUE(_xlpm.d))))","v":""}]
[null,{"$f":"IFERROR(\n    _xlfn.LET(\n        _xlpm.spill,_xlfn.ANCHORARRAY( $M$3),\n        _xlpm.rowData, _xlfn.TAKE(_xlfn.DROP('Claim Entry Example'!16:16,,12), , COLUMNS(_xlpm.spill)),\n        SUM(_xlfn._xlws.FILTER(_xlpm.rowData, ISNUMBER(_xlpm.rowData)))\n    ),\n\"\")","v":""},0,null,null,{"$f":"IF(G16=\"\",\"\",_xlfn.LET(_xlpm.d,$G$5:G16,COUNT(_xlfn.UNIQUE(_xlpm.d))))","v":""}]
[null,{"$f":"IFERROR(\n    _xlfn.LET(\n        _xlpm.spill,_xlfn.ANCHORARRAY( $M$3),\n        _xlpm.rowData, _xlfn.TAKE(_xlfn.DROP('Claim Entry Example'!17:17,,12), , COLUMNS(_xlpm.spill)),\n        SUM(_xlfn._xlws.FILTER(_xlpm.rowData, ISNUMBER(_xlpm.rowData)))\n    ),\n\"\")","v":""},0,null,null,{"$f":"IF(G17=\"\",\"\",_xlfn.LET(_xlpm.d,$G$5:G17,COUNT(_xlfn.UNIQUE(_xlpm.d))))","v":""}]
[null,{"$f":"IFERROR(\n    _xlfn.LET(\n        _xlpm.spill,_xlfn.ANCHORARRAY( $M$3),\n        _xlpm.rowData, _xlfn.TAKE(_xlfn.DROP('Claim Entry Example'!18:18,,12), , COLUMNS(_xlpm.spill)),\n        SUM(_xlfn._xlws.FILTER(_xlpm.rowData, ISNUMBER(_xlpm.rowData)))\n    ),\n\"\")","v":""},0,null,null,{"$f":"IF(G18=\"\",\"\",_xlfn.LET(_xlpm.d,$G$5:G18,COUNT(_xlfn.UNIQUE(_xlpm.d))))","v":""}]
[null,{"$f":"IFERROR(\n    _xlfn.LET(\n        _xlpm.spill,_xlfn.ANCHORARRAY( $M$3),\n        _xlpm.rowData, _xlfn.TAKE(_xlfn.DROP('Claim Entry Example'!19:19,,12), , COLUMNS(_xlpm.spill)),\n        SUM(_xlfn._xlws.FILTER(_xlpm.rowData, ISNUMBER(_xlpm.rowData)))\n    ),\n\"\")","v":""},0,null,null,{"$f":"IF(G19=\"\",\"\",_xlfn.LET(_xlpm.d,$G$5:G19,COUNT(_xlfn.UNIQUE(_xlpm.d))))","v":""}]
[null,{"$f":"IFERROR(\n    _xlfn.LET(\n        _xlpm.spill,_xlfn.ANCHORARRAY( $M$3),\n        _xlpm.rowData, _xlfn.TAKE(_xlfn.DROP('Claim Entry Example'!20:20,,12), , COLUMNS(_xlpm.spill)),\n        SUM(_xlfn._xlws.FILTER(_xlpm.rowData, ISNUMBER(_xlpm.rowData)))\n    ),\n\"\")","v":""},0,null,null,{"$f":"IF(G20=\"\",\"\",_xlfn.LET(_xlpm.d,$G$5:G20,COUNT(_xlfn.UNIQUE(_xlpm.d))))","v":""}]
[null,{"$f":"IFERROR(\n    _xlfn.LET(\n        _xlpm.spill,_xlfn.ANCHORARRAY( $M$3),\n        _xlpm.rowData, _xlfn.TAKE(_xlfn.DROP('Claim Entry Example'!21:21,,12), , COLUMNS(_xlpm.spill)),\n        SUM(_xlfn._xlws.FILTER(_xlpm.rowData, ISNUMBER(_xlpm.rowData)))\n    ),\n\"\")","v":""},0,null,null,{"$f":"IF(G21=\"\",\"\",_xlfn.LET(_xlpm.d,$G$5:G21,COUNT(_xlfn.UNIQUE(_xlpm.d))))","v":""}]
[null,{"$f":"IFERROR(\n    _xlfn.LET(\n        _xlpm.spill,_xlfn.ANCHORARRAY( $M$3),\n        _xlpm.rowData, _xlfn.TAKE(_xlfn.DROP('Claim Entry Example'!22:22,,12), , COLUMNS(_xlpm.spill)),\n        SUM(_xlfn._xlws.FILTER(_xlpm.rowData, ISNUMBER(_xlpm.rowData)))\n    ),\n\"\")","v":""},0,null,null,{"$f":"IF(K21=\"\",\"\",_xlfn.LET(_xlpm.d,$G$5:G22,COUNT(_xlfn.UNIQUE(_xlpm.d))))","v":""}]
[null,{"$f":"IFERROR(\n    _xlfn.LET(\n        _xlpm.spill,_xlfn.ANCHORARRAY( $M$3),\n        _xlpm.rowData, _xlfn.TAKE(_xlfn.DROP('Claim Entry Example'!23:23,,12), , COLUMNS(_xlpm.spill)),\n        SUM(_xlfn._xlws.FILTER(_xlpm.rowData, ISNUMBER(_xlpm.rowData)))\n    ),\n\"\")","v":""},0,null,null,{"$f":"IF(G23=\"\",\"\",_xlfn.LET(_xlpm.d,$G$5:G23,COUNT(_xlfn.UNIQUE(_xlpm.d))))","v":""}]
[null,{"$f":"IFERROR(\n    _xlfn.LET(\n        _xlpm.spill,_xlfn.ANCHORARRAY( $M$3),\n        _xlpm.rowData, _xlfn.TAKE(_xlfn.DROP('Claim Entry Example'!24:24,,12), , COLUMNS(_xlpm.spill)),\n        SUM(_xlfn._xlws.FILTER(_xlpm.rowData, ISNUMBER(_xlpm.rowData)))\n    ),\n\"\")","v":""},0,null,null,{"$f":"IF(G24=\"\",\"\",_xlfn.LET(_xlpm.d,$G$5:G24,COUNT(_xlfn.UNIQUE(_xlpm.d))))","v":""}]
[null,{"$f":"IFERROR(\n    _xlfn.LET(\n        _xlpm.spill,_xlfn.ANCHORARRAY( $M$3),\n        _xlpm.rowData, _xlfn.TAKE(_xlfn.DROP('Claim Entry Example'!25:25,,12), , COLUMNS(_xlpm.spill)),\n        SUM(_xlfn._xlws.FILTER(_xlpm.rowData, ISNUMBER(_xlpm.rowData)))\n    ),\n\"\")","v":""},0,null,null,{"$f":"IF(G25=\"\",\"\",_xlfn.LET(_xlpm.d,$G$5:G25,COUNT(_xlfn.UNIQUE(_xlpm.d))))","v":""}]
[null,{"$f":"IFERROR(\n    _xlfn.LET(\n        _xlpm.spill,_xlfn.ANCHORARRAY( $M$3),\n        _xlpm.rowData, _xlfn.TAKE(_xlfn.DROP('Claim Entry Example'!26:26,,12), , COLUMNS(_xlpm.spill)),\n        SUM(_xlfn._xlws.FILTER(_xlpm.rowData, ISNUMBER(_xlpm.rowData)))\n    ),\n\"\")","v":""},0,null,null,{"$f":"IF(G26=\"\",\"\",_xlfn.LET(_xlpm.d,$G$5:G26,COUNT(_xlfn.UNIQUE(_xlpm.d))))","v":""}]
[null,{"$f":"IFERROR(\n    _xlfn.LET(\n        _xlpm.spill,_xlfn.ANCHORARRAY( $M$3),\n        _xlpm.rowData, _xlfn.TAKE(_xlfn.DROP('Claim Entry Example'!27:27,,12), , COLUMNS(_xlpm.spill)),\n        SUM(_xlfn._xlws.FILTER(_xlpm.rowData, ISNUMBER(_xlpm.rowData)))\n    ),\n\"\")","v":""},0,null,null,{"$f":"IF(G27=\"\",\"\",_xlfn.LET(_xlpm.d,$G$5:G27,COUNT(_xlfn.UNIQUE(_xlpm.d))))","v":""}]
[null,{"$f":"IFERROR(\n    _xlfn.LET(\n        _xlpm.spill,_xlfn.ANCHORARRAY( $M$3),\n        _xlpm.rowData, _xlfn.TAKE(_xlfn.DROP('Claim Entry Example'!28:28,,12), , COLUMNS(_xlpm.spill)),\n        SUM(_xlfn._xlws.FILTER(_xlpm.rowData, ISNUMBER(_xlpm.rowData)))\n    ),\n\"\")","v":""},0,null,null,{"$f":"IF(G28=\"\",\"\",_xlfn.LET(_xlpm.d,$G$5:G28,COUNT(_xlfn.UNIQUE(_xlpm.d))))","v":""}]
[null,{"$f":"IFERROR(\n    _xlfn.LET(\n        _xlpm.spill,_xlfn.ANCHORARRAY( $M$3),\n        _xlpm.rowData, _xlfn.TAKE(_xlfn.DROP('Claim Entry Example'!29:29,,12), , COLUMNS(_xlpm.spill)),\n        SUM(_xlfn._xlws.FILTER(_xlpm.rowData, ISNUMBER(_xlpm.rowData)))\n    ),\n\"\")","v":""},0,null,null,{"$f":"IF(G29=\"\",\"\",_xlfn.LET(_xlpm.d,$G$5:G29,COUNT(_xlfn.UNIQUE(_xlpm.d))))","v":""}]
[null,{"$f":"IFERROR(\n    _xlfn.LET(\n        _xlpm.spill,_xlfn.ANCHORARRAY( $M$3),\n        _xlpm.rowData, _xlfn.TAKE(_xlfn.DROP('Claim Entry Example'!30:30,,12), , COLUMNS(_xlpm.spill)),\n        SUM(_xlfn._xlws.FILTER(_xlpm.rowData, ISNUMBER(_xlpm.rowData)))\n    ),\n\"\")","v":""},0,null,null,{"$f":"IF(G30=\"\",\"\",_xlfn.LET(_xlpm.d,$G$5:G30,COUNT(_xlfn.UNIQUE(_xlpm.d))))","v":""}]
[null,{"$f":"IFERROR(\n    _xlfn.LET(\n        _xlpm.spill,_xlfn.ANCHORARRAY( $M$3),\n        _xlpm.rowData, _xlfn.TAKE(_xlfn.DROP('Claim Entry Example'!31:31,,12), , COLUMNS(_xlpm.spill)),\n        SUM(_xlfn._xlws.FILTER(_xlpm.rowData, ISNUMBER(_xlpm.rowData)))\n    ),\n\"\")","v":""},0,null,null,{"$f":"IF(G31=\"\",\"\",_xlfn.LET(_xlpm.d,$G$5:G31,COUNT(_xlfn.UNIQUE(_xlpm.d))))","v":""}]
[null,{"$f":"IFERROR(\n    _xlfn.LET(\n        _xlpm.spill,_xlfn.ANCHORARRAY( $M$3),\n        _xlpm.rowData, _xlfn.TAKE(_xlfn.DROP('Claim Entry Example'!32:32,,12), , COLUMNS(_xlpm.spill)),\n        SUM(_xlfn._xlws.FILTER(_xlpm.rowData, ISNUMBER(_xlpm.rowData)))\n    ),\n\"\")","v":""},0,null,null,{"$f":"IF(G32=\"\",\"\",_xlfn.LET(_xlpm.d,$G$5:G32,COUNT(_xlfn.UNIQUE(_xlpm.d))))","v":""}]
[null,{"$f":"IFERROR(\n    _xlfn.LET(\n        _xlpm.spill,_xlfn.ANCHORARRAY( $M$3),\n        _xlpm.rowData, _xlfn.TAKE(_xlfn.DROP('Claim Entry Example'!33:33,,12), , COLUMNS(_xlpm.spill)),\n        SUM(_xlfn._xlws.FILTER(_xlpm.rowData, ISNUMBER(_xlpm.rowData)))\n    ),\n\"\")","v":""},0,null,null,{"$f":"IF(G33=\"\",\"\",_xlfn.LET(_xlpm.d,$G$5:G33,COUNT(_xlfn.UNIQUE(_xlpm.d))))","v":""}]
[null,{"$f":"IFERROR(\n    _xlfn.LET(\n        _xlpm.spill,_xlfn.ANCHORARRAY( $M$3),\n        _xlpm.rowData, _xlfn.TAKE(_xlfn.DROP('Claim Entry Example'!34:34,,12), , COLUMNS(_xlpm.spill)),\n        SUM(_xlfn._xlws.FILTER(_xlpm.rowData, ISNUMBER(_xlpm.rowData)))\n    ),\n\"\")","v":""},0,null,null,{"$f":"IF(G34=\"\",\"\",_xlfn.LET(_xlpm.d,$G$5:G34,COUNT(_xlfn.UNIQUE(_xlpm.d))))","v":""}]
[null,{"$f":"IFERROR(\n    _xlfn.LET(\n        _xlpm.spill,_xlfn.ANCHORARRAY( $M$3),\n        _xlpm.rowData, _xlfn.TAKE(_xlfn.DROP('Claim Entry Example'!35:35,,12), , COLUMNS(_xlpm.spill)),\n        SUM(_xlfn._xlws.FILTER(_xlpm.rowData, ISNUMBER(_xlpm.rowData)))\n    ),\n\"\")","v":""},0,null,null,{"$f":"IF(G35=\"\",\"\",_xlfn.LET(_xlpm.d,$G$5:G35,COUNT(_xlfn.UNIQUE(_xlpm.d))))","v":""}]
[null,{"$f":"IFERROR(\n    _xlfn.LET(\n        _xlpm.spill,_xlfn.ANCHORARRAY( $M$3),\n        _xlpm.rowData, _xlfn.TAKE(_xlfn.DROP('Claim Entry Example'!36:36,,12), , COLUMNS(_xlpm.spill)),\n        SUM(_xlfn._xlws.FILTER(_xlpm.rowData, ISNUMBER(_xlpm.rowData)))\n    ),\n\"\")","v":""},0,null,null,{"$f":"IF(G36=\"\",\"\",_xlfn.LET(_xlpm.d,$G$5:G36,COUNT(_xlfn.UNIQUE(_xlpm.d))))","v":""}]
[null,{"$f":"IFERROR(\n    _xlfn.LET(\n        _xlpm.spill,_xlfn.ANCHORARRAY( $M$3),\n        _xlpm.rowData, _xlfn.TAKE(_xlfn.DROP('Claim Entry Example'!37:37,,12), , COLUMNS(_xlpm.spill)),\n        SUM(_xlfn._xlws.FILTER(_xlpm.rowData, ISNUMBER(_xlpm.rowData)))\n    ),\n\"\")","v":""},0,null,null,{"$f":"IF(G37=\"\",\"\",_xlfn.LET(_xlpm.d,$G$5:G37,COUNT(_xlfn.UNIQUE(_xlpm.d))))","v":""}]
[null,{"$f":"IFERROR(\n    _xlfn.LET(\n        _xlpm.spill,_xlfn.ANCHORARRAY( $M$3),\n        _xlpm.rowData, _xlfn.TAKE(_xlfn.DROP('Claim Entry Example'!38:38,,12), , COLUMNS(_xlpm.spill)),\n        SUM(_xlfn._xlws.FILTER(_xlpm.rowData, ISNUMBER(_xlpm.rowData)))\n    ),\n\"\")","v":""},0,null,null,{"$f":"IF(G38=\"\",\"\",_xlfn.LET(_xlpm.d,$G$5:G38,COUNT(_xlfn.UNIQUE(_xlpm.d))))","v":""}]
[null,{"$f":"IFERROR(\n    _xlfn.LET(\n        _xlpm.spill,_xlfn.ANCHORARRAY( $M$3),\n        _xlpm.rowData, _xlfn.TAKE(_xlfn.DROP('Claim Entry Example'!39:39,,12), , COLUMNS(_xlpm.spill)),\n        SUM(_xlfn._xlws.FILTER(_xlpm.rowData, ISNUMBER(_xlpm.rowData)))\n    ),\n\"\")","v":""},0,null,null,{"$f":"IF(G39=\"\",\"\",_xlfn.LET(_xlpm.d,$G$5:G39,COUNT(_xlfn.UNIQUE(_xlpm.d))))","v":""}]
[null,{"$f":"IFERROR(\n    _xlfn.LET(\n        _xlpm.spill,_xlfn.ANCHORARRAY( $M$3),\n        _xlpm.rowData, _xlfn.TAKE(_xlfn.DROP('Claim Entry Example'!40:40,,12), , COLUMNS(_xlpm.spill)),\n        SUM(_xlfn._xlws.FILTER(_xlpm.rowData, ISNUMBER(_xlpm.rowData)))\n    ),\n\"\")","v":""},0,null,null,{"$f":"IF(G40=\"\",\"\",_xlfn.LET(_xlpm.d,$G$5:G40,COUNT(_xlfn.UNIQUE(_xlpm.d))))","v":""}]
[null,{"$f":"IFERROR(\n    _xlfn.LET(\n        _xlpm.spill,_xlfn.ANCHORARRAY( $M$3),\n        _xlpm.rowData, _xlfn.TAKE(_xlfn.DROP('Claim Entry Example'!41:41,,12), , COLUMNS(_xlpm.spill)),\n        SUM(_xlfn._xlws.FILTER(_xlpm.rowData, ISNUMBER(_xlpm.rowData)))\n    ),\n\"\")","v":""},0,null,null,{"$f":"IF(G41=\"\",\"\",_xlfn.LET(_xlpm.d,$G$5:G41,COUNT(_xlfn.UNIQUE(_xlpm.d))))","v":""}]
[null,{"$f":"IFERROR(\n    _xlfn.LET(\n        _xlpm.spill,_xlfn.ANCHORARRAY( $M$3),\n        _xlpm.rowData, _xlfn.TAKE(_xlfn.DROP('Claim Entry Example'!42:42,,12), , COLUMNS(_xlpm.spill)),\n        SUM(_xlfn._xlws.FILTER(_xlpm.rowData, ISNUMBER(_xlpm.rowData)))\n    ),\n\"\")","v":""},0,null,null,{"$f":"IF(G42=\"\",\"\",_xlfn.LET(_xlpm.d,$G$5:G42,COUNT(_xlfn.UNIQUE(_xlpm.d))))","v":""}]
[null,{"$f":"IFERROR(\n    _xlfn.LET(\n        _xlpm.spill,_xlfn.ANCHORARRAY( $M$3),\n        _xlpm.rowData, _xlfn.TAKE(_xlfn.DROP('Claim Entry Example'!43:43,,12), , COLUMNS(_xlpm.spill)),\n        SUM(_xlfn._xlws.FILTER(_xlpm.rowData, ISNUMBER(_xlpm.rowData)))\n    ),\n\"\")","v":""},0,null,null,{"$f":"IF(G43=\"\",\"\",_xlfn.LET(_xlpm.d,$G$5:G43,COUNT(_xlfn.UNIQUE(_xlpm.d))))","v":""}]
[null,{"$f":"IFERROR(\n    _xlfn.LET(\n        _xlpm.spill,_xlfn.ANCHORARRAY( $M$3),\n        _xlpm.rowData, _xlfn.TAKE(_xlfn.DROP('Claim Entry Example'!44:44,,12), , COLUMNS(_xlpm.spill)),\n        SUM(_xlfn._xlws.FILTER(_xlpm.rowData, ISNUMBER(_xlpm.rowData)))\n    ),\n\"\")","v":""},0,null,null,{"$f":"IF(G44=\"\",\"\",_xlfn.LET(_xlpm.d,$G$5:G44,COUNT(_xlfn.UNIQUE(_xlpm.d))))","v":""}]
[null,{"$f":"IFERROR(\n    _xlfn.LET(\n        _xlpm.spill,_xlfn.ANCHORARRAY( $M$3),\n        _xlpm.rowData, _xlfn.TAKE(_xlfn.DROP('Claim Entry Example'!45:45,,12), , COLUMNS(_xlpm.spill)),\n        SUM(_xlfn._xlws.FILTER(_xlpm.rowData, ISNUMBER(_xlpm.rowData)))\n    ),\n\"\")","v":""},0,null,null,{"$f":"IF(G45=\"\",\"\",_xlfn.LET(_xlpm.d,$G$5:G45,COUNT(_xlfn.UNIQUE(_xlpm.d))))","v":""}]
[null,{"$f":"IFERROR(\n    _xlfn.LET(\n        _xlpm.spill,_xlfn.ANCHORARRAY( $M$3),\n        _xlpm.rowData, _xlfn.TAKE(_xlfn.DROP('Claim Entry Example'!46:46,,12), , COLUMNS(_xlpm.spill)),\n        SUM(_xlfn._xlws.FILTER(_xlpm.rowData, ISNUMBER(_xlpm.rowData)))\n    ),\n\"\")","v":""},0,null,null,{"$f":"IF(G46=\"\",\"\",_xlfn.LET(_xlpm.d,$G$5:G46,COUNT(_xlfn.UNIQUE(_xlpm.d))))","v":""}]
[null,{"$f":"IFERROR(\n    _xlfn.LET(\n        _xlpm.spill,_xlfn.ANCHORARRAY( $M$3),\n        _xlpm.rowData, _xlfn.TAKE(_xlfn.DROP('Claim Entry Example'!47:47,,12), , COLUMNS(_xlpm.spill)),\n        SUM(_xlfn._xlws.FILTER(_xlpm.rowData, ISNUMBER(_xlpm.rowData)))\n    ),\n\"\")","v":""},0,null,null,{"$f":"IF(G47=\"\",\"\",_xlfn.LET(_xlpm.d,$G$5:G47,COUNT(_xlfn.UNIQUE(_xlpm.d))))","v":""}]
[null,{"$f":"IFERROR(\n    _xlfn.LET(\n        _xlpm.spill,_xlfn.ANCHORARRAY( $M$3),\n        _xlpm.rowData, _xlfn.TAKE(_xlfn.DROP('Claim Entry Example'!48:48,,12), , COLUMNS(_xlpm.spill)),\n        SUM(_xlfn._xlws.FILTER(_xlpm.rowData, ISNUMBER(_xlpm.rowData)))\n    ),\n\"\")","v":""},0,null,null,{"$f":"IF(G48=\"\",\"\",_xlfn.LET(_xlpm.d,$G$5:G48,COUNT(_xlfn.UNIQUE(_xlpm.d))))","v":""}]
[null,{"$f":"IFERROR(\n    _xlfn.LET(\n        _xlpm.spill,_xlfn.ANCHORARRAY( $M$3),\n        _xlpm.rowData, _xlfn.TAKE(_xlfn.DROP('Claim Entry Example'!49:49,,12), , COLUMNS(_xlpm.spill)),\n        SUM(_xlfn._xlws.FILTER(_xlpm.rowData, ISNUMBER(_xlpm.rowData)))\n    ),\n\"\")","v":""},0,null,null,{"$f":"IF(G49=\"\",\"\",_xlfn.LET(_xlpm.d,$G$5:G49,COUNT(_xlfn.UNIQUE(_xlpm.d))))","v":""}]
[null,{"$f":"IFERROR(\n    _xlfn.LET(\n        _xlpm.spill,_xlfn.ANCHORARRAY( $M$3),\n        _xlpm.rowData, _xlfn.TAKE(_xlfn.DROP('Claim Entry Example'!50:50,,12), , COLUMNS(_xlpm.spill)),\n        SUM(_xlfn._xlws.FILTER(_xlpm.rowData, ISNUMBER(_xlpm.rowData)))\n    ),\n\"\")","v":""},0,null,null,{"$f":"IF(G50=\"\",\"\",_xlfn.LET(_xlpm.d,$G$5:G50,COUNT(_xlfn.UNIQUE(_xlpm.d))))","v":""}]
[null,{"$f":"IFERROR(\n    _xlfn.LET(\n        _xlpm.spill,_xlfn.ANCHORARRAY( $M$3),\n        _xlpm.rowData, _xlfn.TAKE(_xlfn.DROP('Claim Entry Example'!51:51,,12), , COLUMNS(_xlpm.spill)),\n        SUM(_xlfn._xlws.FILTER(_xlpm.rowData, ISNUMBER(_xlpm.rowData)))\n    ),\n\"\")","v":""},0,null,null,{"$f":"IF(G51=\"\",\"\",_xlfn.LET(_xlpm.d,$G$5:G51,COUNT(_xlfn.UNIQUE(_xlpm.d))))","v":""}]
[null,{"$f":"IFERROR(\n    _xlfn.LET(\n        _xlpm.spill,_xlfn.ANCHORARRAY( $M$3),\n        _xlpm.rowData, _xlfn.TAKE(_xlfn.DROP('Claim Entry Example'!52:52,,12), , COLUMNS(_xlpm.spill)),\n        SUM(_xlfn._xlws.FILTER(_xlpm.rowData, ISNUMBER(_xlpm.rowData)))\n    ),\n\"\")","v":""},0,null,null,{"$f":"IF(G52=\"\",\"\",_xlfn.LET(_xlpm.d,$G$5:G52,COUNT(_xlfn.UNIQUE(_xlpm.d))))","v":""}]
[null,{"$f":"IFERROR(\n    _xlfn.LET(\n        _xlpm.spill,_xlfn.ANCHORARRAY( $M$3),\n        _xlpm.rowData, _xlfn.TAKE(_xlfn.DROP('Claim Entry Example'!53:53,,12), , COLUMNS(_xlpm.spill)),\n        SUM(_xlfn._xlws.FILTER(_xlpm.rowData, ISNUMBER(_xlpm.rowData)))\n    ),\n\"\")","v":""},0,null,null,{"$f":"IF(G53=\"\",\"\",_xlfn.LET(_xlpm.d,$G$5:G53,COUNT(_xlfn.UNIQUE(_xlpm.d))))","v":""}]
[null,{"$f":"IFERROR(\n    _xlfn.LET(\n        _xlpm.spill,_xlfn.ANCHORARRAY( $M$3),\n        _xlpm.rowData, _xlfn.TAKE(_xlfn.DROP('Claim Entry Example'!54:54,,12), , COLUMNS(_xlpm.spill)),\n        SUM(_xlfn._xlws.FILTER(_xlpm.rowData, ISNUMBER(_xlpm.rowData)))\n    ),\n\"\")","v":""},0,null,null,{"$f":"IF(G54=\"\",\"\",_xlfn.LET(_xlpm.d,$G$5:G54,COUNT(_xlfn.UNIQUE(_xlpm.d))))","v":""}]

{"sheet":"Claim Totals Example","index":2,"n_rows":11,"n_cols":6,"rows_kept":11,"cut":false,"hidden":false,"merged":[]}
[]
[null,null,"Summary of Totals from 'Claim Entry Example' Sheet"]
[]
[null,null,null,{"$f":"INDEX(_xlfn.ANCHORARRAY('Claim Entry Example'!M3), 2, 0)","v":"Max's Island Elementary School"},"Rumpus Middle School","Crown & Scepter High School "]
[null,null,"Subgrant Number",{"$f":"IF(_xlfn.ANCHORARRAY(D4)=\"\",\"\",_xlfn.XLOOKUP(_xlfn.ANCHORARRAY(D4),'sponsor dropdowns'!$K$2:$K$44,'sponsor dropdowns'!$L$2:$L$44))","v":"SG-90001-ME"},"SG-90002-RM","SG-90003-CS"]
[null,null,"Amount Allocated for SY 25-26",{"$f":"IF(_xlfn.ANCHORARRAY(D5)=\"\",\"\",2023)","v":2023},2023,2023]
[null,null,"Remaining Amount Available",{"$f":"_xlfn.ANCHORARRAY(D6)-_xlfn.ANCHORARRAY(D8)","v":-598.82999999999993},564.65999999999985,566.05999999999995]
["Claim\nNo.","Claim\nDate","Totals by Site ⇒\n& by Claim No. ⇓",{"$f":"_xlfn.BYCOL(_xlfn.ANCHORARRAY(D9), _xlfn.LAMBDA(_xlpm.c, SUM(_xlpm.c)))","v":2621.83},1458.3400000000001,1456.94]
[{"$f":"_xlfn.UNIQUE(_xlfn._xlws.FILTER('Claim Entry Example'!F5:F54, 'Claim Entry Example'!F5:F54<>\"\"))","v":1},{"$f":"_xlfn.XLOOKUP(_xlfn.ANCHORARRAY(A9),'Claim Entry Example'!$F$5:$F$54,'Claim Entry Example'!$G$5:$G$54)","v":"2025-10-09"},{"$f":"_xlfn.BYROW(_xlfn.ANCHORARRAY(D9), _xlfn.LAMBDA(_xlpm.r, SUM(_xlpm.r)))","v":2969.5},{"$f":"_xlfn.MAKEARRAY(\n    ROWS(_xlfn.ANCHORARRAY('Claim Totals Example'!B9)),\n    COLUMNS(INDEX(_xlfn.ANCHORARRAY('Claim Entry Example'!M3), 2, 0)),\n    _xlfn.LAMBDA(_xlpm.r,_xlpm.c,\n        SUMPRODUCT(\n            ('Claim Entry Example'!G5:G104 = INDEX(_xlfn.ANCHORARRAY('Claim Totals Example'!B9), _xlpm.r)) *\n            OFFSET('Claim Entry Example'!M5, 0, _xlpm.c-1, ROWS('Claim Entry Example'!G5:G104), 1)\n        )\n    )\n)","v":973.90000000000009},981,1014.6]
[2,"2025-10-31",317.72000000000003,84.24,84.24,149.24]
[3,"2025-11-15",2249.89,1563.69,393.1,293.10000000000002]

{"sheet":"Claim Entry","index":3,"n_rows":54,"n_cols":13,"rows_kept":54,"cut":false,"hidden":false,"merged":[[1,8,1,10]]}
[]
[null,null,null,null,null,null,null,"Sponsor Name","Select Sponsor",null,null,null,{"$f":"IF(\n    OR(Sponsor_Name = \"\", Sponsor_Name = \"Select Sponsor\"),\n    \"\",\n    TRANSPOSE(_xlfn.CHOOSECOLS(_xlfn._xlws.FILTER('BATB Reqd'!A:G,'BATB Reqd'!B:B = Sponsor_Name), 3, 7, 4))\n)","v":""}]
["CNP USE ONLY"]
["Comments","TOTAL","Total Claim Amount","ODE Approved","Dated Processed in EGMS","Claim No.","Claim\nDate","Vendor","Invoice\nNumber","Invoice\nDate","Equipment Item","Reason\n(Select primary reason or enter your own)"]
[null,{"$f":"IFERROR(\n    _xlfn.LET(\n        _xlpm.spill,_xlfn.ANCHORARRAY( $M$2),\n        _xlpm.rowData, _xlfn.TAKE(_xlfn.DROP('Claim Entry'!5:5,,12), , COLUMNS(_xlpm.spill)),\n        SUM(_xlfn._xlws.FILTER(_xlpm.rowData, ISNUMBER(_xlpm.rowData)))\n    ),\n\"\")","v":""},{"$f":"SUMIFS($B$5:$B$54,F5:F54,F5:F54)","v":0},null,null,{"$f":"IF(G5=\"\",\"\",_xlfn.LET(_xlpm.d,$G$5:G5,COUNT(_xlfn.UNIQUE(_xlpm.d))))","v":""}]
[null,{"$f":"IFERROR(\n    _xlfn.LET(\n        _xlpm.spill,_xlfn.ANCHORARRAY( $M$2),\n        _xlpm.rowData, _xlfn.TAKE(_xlfn.DROP('Claim Entry'!6:6,,12), , COLUMNS(_xlpm.spill)),\n        SUM(_xlfn._xlws.FILTER(_xlpm.rowData, ISNUMBER(_xlpm.rowData)))\n    ),\n\"\")","v":""},0,null,null,{"$f":"IF(G6=\"\",\"\",_xlfn.LET(_xlpm.d,$G$5:G6,COUNT(_xlfn.UNIQUE(_xlpm.d))))","v":""}]
[null,{"$f":"IFERROR(\n    _xlfn.LET(\n        _xlpm.spill,_xlfn.ANCHORARRAY( $M$2),\n        _xlpm.rowData, _xlfn.TAKE(_xlfn.DROP('Claim Entry'!7:7,,12), , COLUMNS(_xlpm.spill)),\n        SUM(_xlfn._xlws.FILTER(_xlpm.rowData, ISNUMBER(_xlpm.rowData)))\n    ),\n\"\")","v":""},0,null,null,{"$f":"IF(G7=\"\",\"\",_xlfn.LET(_xlpm.d,$G$5:G7,COUNT(_xlfn.UNIQUE(_xlpm.d))))","v":""}]
[null,{"$f":"IFERROR(\n    _xlfn.LET(\n        _xlpm.spill,_xlfn.ANCHORARRAY( $M$2),\n        _xlpm.rowData, _xlfn.TAKE(_xlfn.DROP('Claim Entry'!8:8,,12), , COLUMNS(_xlpm.spill)),\n        SUM(_xlfn._xlws.FILTER(_xlpm.rowData, ISNUMBER(_xlpm.rowData)))\n    ),\n\"\")","v":""},0,null,null,{"$f":"IF(G8=\"\",\"\",_xlfn.LET(_xlpm.d,$G$5:G8,COUNT(_xlfn.UNIQUE(_xlpm.d))))","v":""}]
[null,{"$f":"IFERROR(\n    _xlfn.LET(\n        _xlpm.spill,_xlfn.ANCHORARRAY( $M$2),\n        _xlpm.rowData, _xlfn.TAKE(_xlfn.DROP('Claim Entry'!9:9,,12), , COLUMNS(_xlpm.spill)),\n        SUM(_xlfn._xlws.FILTER(_xlpm.rowData, ISNUMBER(_xlpm.rowData)))\n    ),\n\"\")","v":""},0,null,null,{"$f":"IF(G9=\"\",\"\",_xlfn.LET(_xlpm.d,$G$5:G9,COUNT(_xlfn.UNIQUE(_xlpm.d))))","v":""}]
[null,{"$f":"IFERROR(\n    _xlfn.LET(\n        _xlpm.spill,_xlfn.ANCHORARRAY( $M$2),\n        _xlpm.rowData, _xlfn.TAKE(_xlfn.DROP('Claim Entry'!10:10,,12), , COLUMNS(_xlpm.spill)),\n        SUM(_xlfn._xlws.FILTER(_xlpm.rowData, ISNUMBER(_xlpm.rowData)))\n    ),\n\"\")","v":""},0,null,null,{"$f":"IF(G10=\"\",\"\",_xlfn.LET(_xlpm.d,$G$5:G10,COUNT(_xlfn.UNIQUE(_xlpm.d))))","v":""}]
[null,{"$f":"IFERROR(\n    _xlfn.LET(\n        _xlpm.spill,_xlfn.ANCHORARRAY( $M$2),\n        _xlpm.rowData, _xlfn.TAKE(_xlfn.DROP('Claim Entry'!11:11,,12), , COLUMNS(_xlpm.spill)),\n        SUM(_xlfn._xlws.FILTER(_xlpm.rowData, ISNUMBER(_xlpm.rowData)))\n    ),\n\"\")","v":""},0,null,null,{"$f":"IF(G11=\"\",\"\",_xlfn.LET(_xlpm.d,$G$5:G11,COUNT(_xlfn.UNIQUE(_xlpm.d))))","v":""}]
[null,{"$f":"IFERROR(\n    _xlfn.LET(\n        _xlpm.spill,_xlfn.ANCHORARRAY( $M$2),\n        _xlpm.rowData, _xlfn.TAKE(_xlfn.DROP('Claim Entry'!12:12,,12), , COLUMNS(_xlpm.spill)),\n        SUM(_xlfn._xlws.FILTER(_xlpm.rowData, ISNUMBER(_xlpm.rowData)))\n    ),\n\"\")","v":""},0,null,null,{"$f":"IF(G12=\"\",\"\",_xlfn.LET(_xlpm.d,$G$5:G12,COUNT(_xlfn.UNIQUE(_xlpm.d))))","v":""}]
[null,{"$f":"IFERROR(\n    _xlfn.LET(\n        _xlpm.spill,_xlfn.ANCHORARRAY( $M$2),\n        _xlpm.rowData, _xlfn.TAKE(_xlfn.DROP('Claim Entry'!13:13,,12), , COLUMNS(_xlpm.spill)),\n        SUM(_xlfn._xlws.FILTER(_xlpm.rowData, ISNUMBER(_xlpm.rowData)))\n    ),\n\"\")","v":""},0,null,null,{"$f":"IF(G13=\"\",\"\",_xlfn.LET(_xlpm.d,$G$5:G13,COUNT(_xlfn.UNIQUE(_xlpm.d))))","v":""}]
[null,{"$f":"IFERROR(\n    _xlfn.LET(\n        _xlpm.spill,_xlfn.ANCHORARRAY( $M$2),\n        _xlpm.rowData, _xlfn.TAKE(_xlfn.DROP('Claim Entry'!14:14,,12), , COLUMNS(_xlpm.spill)),\n        SUM(_xlfn._xlws.FILTER(_xlpm.rowData, ISNUMBER(_xlpm.rowData)))\n    ),\n\"\")","v":""},0,null,null,{"$f":"IF(G14=\"\",\"\",_xlfn.LET(_xlpm.d,$G$5:G14,COUNT(_xlfn.UNIQUE(_xlpm.d))))","v":""}]
[null,{"$f":"IFERROR(\n    _xlfn.LET(\n        _xlpm.spill,_xlfn.ANCHORARRAY( $M$2),\n        _xlpm.rowData, _xlfn.TAKE(_xlfn.DROP('Claim Entry'!15:15,,12), , COLUMNS(_xlpm.spill)),\n        SUM(_xlfn._xlws.FILTER(_xlpm.rowData, ISNUMBER(_xlpm.rowData)))\n    ),\n\"\")","v":""},0,null,null,{"$f":"IF(G15=\"\",\"\",_xlfn.LET(_xlpm.d,$G$5:G15,COUNT(_xlfn.UNIQUE(_xlpm.d))))","v":""}]
[null,{"$f":"IFERROR(\n    _xlfn.LET(\n        _xlpm.spill,_xlfn.ANCHORARRAY( $M$2),\n        _xlpm.rowData, _xlfn.TAKE(_xlfn.DROP('Claim Entry'!16:16,,12), , COLUMNS(_xlpm.spill)),\n        SUM(_xlfn._xlws.FILTER(_xlpm.rowData, ISNUMBER(_xlpm.rowData)))\n    ),\n\"\")","v":""},0,null,null,{"$f":"IF(G16=\"\",\"\",_xlfn.LET(_xlpm.d,$G$5:G16,COUNT(_xlfn.UNIQUE(_xlpm.d))))","v":""}]
[null,{"$f":"IFERROR(\n    _xlfn.LET(\n        _xlpm.spill,_xlfn.ANCHORARRAY( $M$2),\n        _xlpm.rowData, _xlfn.TAKE(_xlfn.DROP('Claim Entry'!17:17,,12), , COLUMNS(_xlpm.spill)),\n        SUM(_xlfn._xlws.FILTER(_xlpm.rowData, ISNUMBER(_xlpm.rowData)))\n    ),\n\"\")","v":""},0,null,null,{"$f":"IF(G17=\"\",\"\",_xlfn.LET(_xlpm.d,$G$5:G17,COUNT(_xlfn.UNIQUE(_xlpm.d))))","v":""}]
[null,{"$f":"IFERROR(\n    _xlfn.LET(\n        _xlpm.spill,_xlfn.ANCHORARRAY( $M$2),\n        _xlpm.rowData, _xlfn.TAKE(_xlfn.DROP('Claim Entry'!18:18,,12), , COLUMNS(_xlpm.spill)),\n        SUM(_xlfn._xlws.FILTER(_xlpm.rowData, ISNUMBER(_xlpm.rowData)))\n    ),\n\"\")","v":""},0,null,null,{"$f":"IF(G18=\"\",\"\",_xlfn.LET(_xlpm.d,$G$5:G18,COUNT(_xlfn.UNIQUE(_xlpm.d))))","v":""}]
[null,{"$f":"IFERROR(\n    _xlfn.LET(\n        _xlpm.spill,_xlfn.ANCHORARRAY( $M$2),\n        _xlpm.rowData, _xlfn.TAKE(_xlfn.DROP('Claim Entry'!19:19,,12), , COLUMNS(_xlpm.spill)),\n        SUM(_xlfn._xlws.FILTER(_xlpm.rowData, ISNUMBER(_xlpm.rowData)))\n    ),\n\"\")","v":""},0,null,null,{"$f":"IF(G19=\"\",\"\",_xlfn.LET(_xlpm.d,$G$5:G19,COUNT(_xlfn.UNIQUE(_xlpm.d))))","v":""}]
[null,{"$f":"IFERROR(\n    _xlfn.LET(\n        _xlpm.spill,_xlfn.ANCHORARRAY( $M$2),\n        _xlpm.rowData, _xlfn.TAKE(_xlfn.DROP('Claim Entry'!20:20,,12), , COLUMNS(_xlpm.spill)),\n        SUM(_xlfn._xlws.FILTER(_xlpm.rowData, ISNUMBER(_xlpm.rowData)))\n    ),\n\"\")","v":""},0,null,null,{"$f":"IF(G20=\"\",\"\",_xlfn.LET(_xlpm.d,$G$5:G20,COUNT(_xlfn.UNIQUE(_xlpm.d))))","v":""}]
[null,{"$f":"IFERROR(\n    _xlfn.LET(\n        _xlpm.spill,_xlfn.ANCHORARRAY( $M$2),\n        _xlpm.rowData, _xlfn.TAKE(_xlfn.DROP('Claim Entry'!21:21,,12), , COLUMNS(_xlpm.spill)),\n        SUM(_xlfn._xlws.FILTER(_xlpm.rowData, ISNUMBER(_xlpm.rowData)))\n    ),\n\"\")","v":""},0,null,null,{"$f":"IF(G21=\"\",\"\",_xlfn.LET(_xlpm.d,$G$5:G21,COUNT(_xlfn.UNIQUE(_xlpm.d))))","v":""}]
[null,{"$f":"IFERROR(\n    _xlfn.LET(\n        _xlpm.spill,_xlfn.ANCHORARRAY( $M$2),\n        _xlpm.rowData, _xlfn.TAKE(_xlfn.DROP('Claim Entry'!22:22,,12), , COLUMNS(_xlpm.spill)),\n        SUM(_xlfn._xlws.FILTER(_xlpm.rowData, ISNUMBER(_xlpm.rowData)))\n    ),\n\"\")","v":""},0,null,null,{"$f":"IF(G22=\"\",\"\",_xlfn.LET(_xlpm.d,$G$5:G22,COUNT(_xlfn.UNIQUE(_xlpm.d))))","v":""}]
[null,{"$f":"IFERROR(\n    _xlfn.LET(\n        _xlpm.spill,_xlfn.ANCHORARRAY( $M$2),\n        _xlpm.rowData, _xlfn.TAKE(_xlfn.DROP('Claim Entry'!23:23,,12), , COLUMNS(_xlpm.spill)),\n        SUM(_xlfn._xlws.FILTER(_xlpm.rowData, ISNUMBER(_xlpm.rowData)))\n    ),\n\"\")","v":""},0,null,null,{"$f":"IF(G23=\"\",\"\",_xlfn.LET(_xlpm.d,$G$5:G23,COUNT(_xlfn.UNIQUE(_xlpm.d))))","v":""}]
[null,{"$f":"IFERROR(\n    _xlfn.LET(\n        _xlpm.spill,_xlfn.ANCHORARRAY( $M$2),\n        _xlpm.rowData, _xlfn.TAKE(_xlfn.DROP('Claim Entry'!24:24,,12), , COLUMNS(_xlpm.spill)),\n        SUM(_xlfn._xlws.FILTER(_xlpm.rowData, ISNUMBER(_xlpm.rowData)))\n    ),\n\"\")","v":""},0,null,null,{"$f":"IF(G24=\"\",\"\",_xlfn.LET(_xlpm.d,$G$5:G24,COUNT(_xlfn.UNIQUE(_xlpm.d))))","v":""}]
[null,{"$f":"IFERROR(\n    _xlfn.LET(\n        _xlpm.spill,_xlfn.ANCHORARRAY( $M$2),\n        _xlpm.rowData, _xlfn.TAKE(_xlfn.DROP('Claim Entry'!25:25,,12), , COLUMNS(_xlpm.spill)),\n        SUM(_xlfn._xlws.FILTER(_xlpm.rowData, ISNUMBER(_xlpm.rowData)))\n    ),\n\"\")","v":""},0,null,null,{"$f":"IF(G25=\"\",\"\",_xlfn.LET(_xlpm.d,$G$5:G25,COUNT(_xlfn.UNIQUE(_xlpm.d))))","v":""}]
[null,{"$f":"IFERROR(\n    _xlfn.LET(\n        _xlpm.spill,_xlfn.ANCHORARRAY( $M$2),\n        _xlpm.rowData, _xlfn.TAKE(_xlfn.DROP('Claim Entry'!26:26,,12), , COLUMNS(_xlpm.spill)),\n        SUM(_xlfn._xlws.FILTER(_xlpm.rowData, ISNUMBER(_xlpm.rowData)))\n    ),\n\"\")","v":""},0,null,null,{"$f":"IF(G26=\"\",\"\",_xlfn.LET(_xlpm.d,$G$5:G26,COUNT(_xlfn.UNIQUE(_xlpm.d))))","v":""}]
[null,{"$f":"IFERROR(\n    _xlfn.LET(\n        _xlpm.spill,_xlfn.ANCHORARRAY( $M$2),\n        _xlpm.rowData, _xlfn.TAKE(_xlfn.DROP('Claim Entry'!27:27,,12), , COLUMNS(_xlpm.spill)),\n        SUM(_xlfn._xlws.FILTER(_xlpm.rowData, ISNUMBER(_xlpm.rowData)))\n    ),\n\"\")","v":""},0,null,null,{"$f":"IF(G27=\"\",\"\",_xlfn.LET(_xlpm.d,$G$5:G27,COUNT(_xlfn.UNIQUE(_xlpm.d))))","v":""}]
[null,{"$f":"IFERROR(\n    _xlfn.LET(\n        _xlpm.spill,_xlfn.ANCHORARRAY( $M$2),\n        _xlpm.rowData, _xlfn.TAKE(_xlfn.DROP('Claim Entry'!28:28,,12), , COLUMNS(_xlpm.spill)),\n        SUM(_xlfn._xlws.FILTER(_xlpm.rowData, ISNUMBER(_xlpm.rowData)))\n    ),\n\"\")","v":""},0,null,null,{"$f":"IF(G28=\"\",\"\",_xlfn.LET(_xlpm.d,$G$5:G28,COUNT(_xlfn.UNIQUE(_xlpm.d))))","v":""}]
[null,{"$f":"IFERROR(\n    _xlfn.LET(\n        _xlpm.spill,_xlfn.ANCHORARRAY( $M$2),\n        _xlpm.rowData, _xlfn.TAKE(_xlfn.DROP('Claim Entry'!29:29,,12), , COLUMNS(_xlpm.spill)),\n        SUM(_xlfn._xlws.FILTER(_xlpm.rowData, ISNUMBER(_xlpm.rowData)))\n    ),\n\"\")","v":""},0,null,null,{"$f":"IF(G29=\"\",\"\",_xlfn.LET(_xlpm.d,$G$5:G29,COUNT(_xlfn.UNIQUE(_xlpm.d))))","v":""}]
[null,{"$f":"IFERROR(\n    _xlfn.LET(\n        _xlpm.spill,_xlfn.ANCHORARRAY( $M$2),\n        _xlpm.rowData, _xlfn.TAKE(_xlfn.DROP('Claim Entry'!30:30,,12), , COLUMNS(_xlpm.spill)),\n        SUM(_xlfn._xlws.FILTER(_xlpm.rowData, ISNUMBER(_xlpm.rowData)))\n    ),\n\"\")","v":""},0,null,null,{"$f":"IF(G30=\"\",\"\",_xlfn.LET(_xlpm.d,$G$5:G30,COUNT(_xlfn.UNIQUE(_xlpm.d))))","v":""}]
[null,{"$f":"IFERROR(\n    _xlfn.LET(\n        _xlpm.spill,_xlfn.ANCHORARRAY( $M$2),\n        _xlpm.rowData, _xlfn.TAKE(_xlfn.DROP('Claim Entry'!31:31,,12), , COLUMNS(_xlpm.spill)),\n        SUM(_xlfn._xlws.FILTER(_xlpm.rowData, ISNUMBER(_xlpm.rowData)))\n    ),\n\"\")","v":""},0,null,null,{"$f":"IF(G31=\"\",\"\",_xlfn.LET(_xlpm.d,$G$5:G31,COUNT(_xlfn.UNIQUE(_xlpm.d))))","v":""}]
[null,{"$f":"IFERROR(\n    _xlfn.LET(\n        _xlpm.spill,_xlfn.ANCHORARRAY( $M$2),\n        _xlpm.rowData, _xlfn.TAKE(_xlfn.DROP('Claim Entry'!32:32,,12), , COLUMNS(_xlpm.spill)),\n        SUM(_xlfn._xlws.FILTER(_xlpm.rowData, ISNUMBER(_xlpm.rowData)))\n    ),\n\"\")","v":""},0,null,null,{"$f":"IF(G32=\"\",\"\",_xlfn.LET(_xlpm.d,$G$5:G32,COUNT(_xlfn.UNIQUE(_xlpm.d))))","v":""}]
[null,{"$f":"IFERROR(\n    _xlfn.LET(\n        _xlpm.spill,_xlfn.ANCHORARRAY( $M$2),\n        _xlpm.rowData, _xlfn.TAKE(_xlfn.DROP('Claim Entry'!33:33,,12), , COLUMNS(_xlpm.spill)),\n        SUM(_xlfn._xlws.FILTER(_xlpm.rowData, ISNUMBER(_xlpm.rowData)))\n    ),\n\"\")","v":""},0,null,null,{"$f":"IF(G33=\"\",\"\",_xlfn.LET(_xlpm.d,$G$5:G33,COUNT(_xlfn.UNIQUE(_xlpm.d))))","v":""}]
[null,{"$f":"IFERROR(\n    _xlfn.LET(\n        _xlpm.spill,_xlfn.ANCHORARRAY( $M$2),\n        _xlpm.rowData, _xlfn.TAKE(_xlfn.DROP('Claim Entry'!34:34,,12), , COLUMNS(_xlpm.spill)),\n        SUM(_xlfn._xlws.FILTER(_xlpm.rowData, ISNUMBER(_xlpm.rowData)))\n    ),\n\"\")","v":""},0,null,null,{"$f":"IF(G34=\"\",\"\",_xlfn.LET(_xlpm.d,$G$5:G34,COUNT(_xlfn.UNIQUE(_xlpm.d))))","v":""}]
[null,{"$f":"IFERROR(\n    _xlfn.LET(\n        _xlpm.spill,_xlfn.ANCHORARRAY( $M$2),\n        _xlpm.rowData, _xlfn.TAKE(_xlfn.DROP('Claim Entry'!35:35,,12), , COLUMNS(_xlpm.spill)),\n        SUM(_xlfn._xlws.FILTER(_xlpm.rowData, ISNUMBER(_xlpm.rowData)))\n    ),\n\"\")","v":""},0,null,null,{"$f":"IF(G35=\"\",\"\",_xlfn.LET(_xlpm.d,$G$5:G35,COUNT(_xlfn.UNIQUE(_xlpm.d))))","v":""}]
[null,{"$f":"IFERROR(\n    _xlfn.LET(\n        _xlpm.spill,_xlfn.ANCHORARRAY( $M$2),\n        _xlpm.rowData, _xlfn.TAKE(_xlfn.DROP('Claim Entry'!36:36,,12), , COLUMNS(_xlpm.spill)),\n        SUM(_xlfn._xlws.FILTER(_xlpm.rowData, ISNUMBER(_xlpm.rowData)))\n    ),\n\"\")","v":""},0,null,null,{"$f":"IF(G36=\"\",\"\",_xlfn.LET(_xlpm.d,$G$5:G36,COUNT(_xlfn.UNIQUE(_xlpm.d))))","v":""}]
[null,{"$f":"IFERROR(\n    _xlfn.LET(\n        _xlpm.spill,_xlfn.ANCHORARRAY( $M$2),\n        _xlpm.rowData, _xlfn.TAKE(_xlfn.DROP('Claim Entry'!37:37,,12), , COLUMNS(_xlpm.spill)),\n        SUM(_xlfn._xlws.FILTER(_xlpm.rowData, ISNUMBER(_xlpm.rowData)))\n    ),\n\"\")","v":""},0,null,null,{"$f":"IF(G37=\"\",\"\",_xlfn.LET(_xlpm.d,$G$5:G37,COUNT(_xlfn.UNIQUE(_xlpm.d))))","v":""}]
[null,{"$f":"IFERROR(\n    _xlfn.LET(\n        _xlpm.spill,_xlfn.ANCHORARRAY( $M$2),\n        _xlpm.rowData, _xlfn.TAKE(_xlfn.DROP('Claim Entry'!38:38,,12), , COLUMNS(_xlpm.spill)),\n        SUM(_xlfn._xlws.FILTER(_xlpm.rowData, ISNUMBER(_xlpm.rowData)))\n    ),\n\"\")","v":""},0,null,null,{"$f":"IF(G38=\"\",\"\",_xlfn.LET(_xlpm.d,$G$5:G38,COUNT(_xlfn.UNIQUE(_xlpm.d))))","v":""}]
[null,{"$f":"IFERROR(\n    _xlfn.LET(\n        _xlpm.spill,_xlfn.ANCHORARRAY( $M$2),\n        _xlpm.rowData, _xlfn.TAKE(_xlfn.DROP('Claim Entry'!39:39,,12), , COLUMNS(_xlpm.spill)),\n        SUM(_xlfn._xlws.FILTER(_xlpm.rowData, ISNUMBER(_xlpm.rowData)))\n    ),\n\"\")","v":""},0,null,null,{"$f":"IF(G39=\"\",\"\",_xlfn.LET(_xlpm.d,$G$5:G39,COUNT(_xlfn.UNIQUE(_xlpm.d))))","v":""}]
[null,{"$f":"IFERROR(\n    _xlfn.LET(\n        _xlpm.spill,_xlfn.ANCHORARRAY( $M$2),\n        _xlpm.rowData, _xlfn.TAKE(_xlfn.DROP('Claim Entry'!40:40,,12), , COLUMNS(_xlpm.spill)),\n        SUM(_xlfn._xlws.FILTER(_xlpm.rowData, ISNUMBER(_xlpm.rowData)))\n    ),\n\"\")","v":""},0,null,null,{"$f":"IF(G40=\"\",\"\",_xlfn.LET(_xlpm.d,$G$5:G40,COUNT(_xlfn.UNIQUE(_xlpm.d))))","v":""}]
[null,{"$f":"IFERROR(\n    _xlfn.LET(\n        _xlpm.spill,_xlfn.ANCHORARRAY( $M$2),\n        _xlpm.rowData, _xlfn.TAKE(_xlfn.DROP('Claim Entry'!41:41,,12), , COLUMNS(_xlpm.spill)),\n        SUM(_xlfn._xlws.FILTER(_xlpm.rowData, ISNUMBER(_xlpm.rowData)))\n    ),\n\"\")","v":""},0,null,null,{"$f":"IF(G41=\"\",\"\",_xlfn.LET(_xlpm.d,$G$5:G41,COUNT(_xlfn.UNIQUE(_xlpm.d))))","v":""}]
[null,{"$f":"IFERROR(\n    _xlfn.LET(\n        _xlpm.spill,_xlfn.ANCHORARRAY( $M$2),\n        _xlpm.rowData, _xlfn.TAKE(_xlfn.DROP('Claim Entry'!42:42,,12), , COLUMNS(_xlpm.spill)),\n        SUM(_xlfn._xlws.FILTER(_xlpm.rowData, ISNUMBER(_xlpm.rowData)))\n    ),\n\"\")","v":""},0,null,null,{"$f":"IF(G42=\"\",\"\",_xlfn.LET(_xlpm.d,$G$5:G42,COUNT(_xlfn.UNIQUE(_xlpm.d))))","v":""}]
[null,{"$f":"IFERROR(\n    _xlfn.LET(\n        _xlpm.spill,_xlfn.ANCHORARRAY( $M$2),\n        _xlpm.rowData, _xlfn.TAKE(_xlfn.DROP('Claim Entry'!43:43,,12), , COLUMNS(_xlpm.spill)),\n        SUM(_xlfn._xlws.FILTER(_xlpm.rowData, ISNUMBER(_xlpm.rowData)))\n    ),\n\"\")","v":""},0,null,null,{"$f":"IF(G43=\"\",\"\",_xlfn.LET(_xlpm.d,$G$5:G43,COUNT(_xlfn.UNIQUE(_xlpm.d))))","v":""}]
[null,{"$f":"IFERROR(\n    _xlfn.LET(\n        _xlpm.spill,_xlfn.ANCHORARRAY( $M$2),\n        _xlpm.rowData, _xlfn.TAKE(_xlfn.DROP('Claim Entry'!44:44,,12), , COLUMNS(_xlpm.spill)),\n        SUM(_xlfn._xlws.FILTER(_xlpm.rowData, ISNUMBER(_xlpm.rowData)))\n    ),\n\"\")","v":""},0,null,null,{"$f":"IF(G44=\"\",\"\",_xlfn.LET(_xlpm.d,$G$5:G44,COUNT(_xlfn.UNIQUE(_xlpm.d))))","v":""}]
[null,{"$f":"IFERROR(\n    _xlfn.LET(\n        _xlpm.spill,_xlfn.ANCHORARRAY( $M$2),\n        _xlpm.rowData, _xlfn.TAKE(_xlfn.DROP('Claim Entry'!45:45,,12), , COLUMNS(_xlpm.spill)),\n        SUM(_xlfn._xlws.FILTER(_xlpm.rowData, ISNUMBER(_xlpm.rowData)))\n    ),\n\"\")","v":""},0,null,null,{"$f":"IF(G45=\"\",\"\",_xlfn.LET(_xlpm.d,$G$5:G45,COUNT(_xlfn.UNIQUE(_xlpm.d))))","v":""}]
[null,{"$f":"IFERROR(\n    _xlfn.LET(\n        _xlpm.spill,_xlfn.ANCHORARRAY( $M$2),\n        _xlpm.rowData, _xlfn.TAKE(_xlfn.DROP('Claim Entry'!46:46,,12), , COLUMNS(_xlpm.spill)),\n        SUM(_xlfn._xlws.FILTER(_xlpm.rowData, ISNUMBER(_xlpm.rowData)))\n    ),\n\"\")","v":""},0,null,null,{"$f":"IF(G46=\"\",\"\",_xlfn.LET(_xlpm.d,$G$5:G46,COUNT(_xlfn.UNIQUE(_xlpm.d))))","v":""}]
[null,{"$f":"IFERROR(\n    _xlfn.LET(\n        _xlpm.spill,_xlfn.ANCHORARRAY( $M$2),\n        _xlpm.rowData, _xlfn.TAKE(_xlfn.DROP('Claim Entry'!47:47,,12), , COLUMNS(_xlpm.spill)),\n        SUM(_xlfn._xlws.FILTER(_xlpm.rowData, ISNUMBER(_xlpm.rowData)))\n    ),\n\"\")","v":""},0,null,null,{"$f":"IF(G47=\"\",\"\",_xlfn.LET(_xlpm.d,$G$5:G47,COUNT(_xlfn.UNIQUE(_xlpm.d))))","v":""}]
[null,{"$f":"IFERROR(\n    _xlfn.LET(\n        _xlpm.spill,_xlfn.ANCHORARRAY( $M$2),\n        _xlpm.rowData, _xlfn.TAKE(_xlfn.DROP('Claim Entry'!48:48,,12), , COLUMNS(_xlpm.spill)),\n        SUM(_xlfn._xlws.FILTER(_xlpm.rowData, ISNUMBER(_xlpm.rowData)))\n    ),\n\"\")","v":""},0,null,null,{"$f":"IF(G48=\"\",\"\",_xlfn.LET(_xlpm.d,$G$5:G48,COUNT(_xlfn.UNIQUE(_xlpm.d))))","v":""}]
[null,{"$f":"IFERROR(\n    _xlfn.LET(\n        _xlpm.spill,_xlfn.ANCHORARRAY( $M$2),\n        _xlpm.rowData, _xlfn.TAKE(_xlfn.DROP('Claim Entry'!49:49,,12), , COLUMNS(_xlpm.spill)),\n        SUM(_xlfn._xlws.FILTER(_xlpm.rowData, ISNUMBER(_xlpm.rowData)))\n    ),\n\"\")","v":""},0,null,null,{"$f":"IF(G49=\"\",\"\",_xlfn.LET(_xlpm.d,$G$5:G49,COUNT(_xlfn.UNIQUE(_xlpm.d))))","v":""}]
[null,{"$f":"IFERROR(\n    _xlfn.LET(\n        _xlpm.spill,_xlfn.ANCHORARRAY( $M$2),\n        _xlpm.rowData, _xlfn.TAKE(_xlfn.DROP('Claim Entry'!50:50,,12), , COLUMNS(_xlpm.spill)),\n        SUM(_xlfn._xlws.FILTER(_xlpm.rowData, ISNUMBER(_xlpm.rowData)))\n    ),\n\"\")","v":""},0,null,null,{"$f":"IF(G50=\"\",\"\",_xlfn.LET(_xlpm.d,$G$5:G50,COUNT(_xlfn.UNIQUE(_xlpm.d))))","v":""}]
[null,{"$f":"IFERROR(\n    _xlfn.LET(\n        _xlpm.spill,_xlfn.ANCHORARRAY( $M$2),\n        _xlpm.rowData, _xlfn.TAKE(_xlfn.DROP('Claim Entry'!51:51,,12), , COLUMNS(_xlpm.spill)),\n        SUM(_xlfn._xlws.FILTER(_xlpm.rowData, ISNUMBER(_xlpm.rowData)))\n    ),\n\"\")","v":""},0,null,null,{"$f":"IF(G51=\"\",\"\",_xlfn.LET(_xlpm.d,$G$5:G51,COUNT(_xlfn.UNIQUE(_xlpm.d))))","v":""}]
[null,{"$f":"IFERROR(\n    _xlfn.LET(\n        _xlpm.spill,_xlfn.ANCHORARRAY( $M$2),\n        _xlpm.rowData, _xlfn.TAKE(_xlfn.DROP('Claim Entry'!52:52,,12), , COLUMNS(_xlpm.spill)),\n        SUM(_xlfn._xlws.FILTER(_xlpm.rowData, ISNUMBER(_xlpm.rowData)))\n    ),\n\"\")","v":""},0,null,null,{"$f":"IF(G52=\"\",\"\",_xlfn.LET(_xlpm.d,$G$5:G52,COUNT(_xlfn.UNIQUE(_xlpm.d))))","v":""}]
[null,{"$f":"IFERROR(\n    _xlfn.LET(\n        _xlpm.spill,_xlfn.ANCHORARRAY( $M$2),\n        _xlpm.rowData, _xlfn.TAKE(_xlfn.DROP('Claim Entry'!53:53,,12), , COLUMNS(_xlpm.spill)),\n        SUM(_xlfn._xlws.FILTER(_xlpm.rowData, ISNUMBER(_xlpm.rowData)))\n    ),\n\"\")","v":""},0,null,null,{"$f":"IF(G53=\"\",\"\",_xlfn.LET(_xlpm.d,$G$5:G53,COUNT(_xlfn.UNIQUE(_xlpm.d))))","v":""}]
[null,{"$f":"IFERROR(\n    _xlfn.LET(\n        _xlpm.spill,_xlfn.ANCHORARRAY( $M$2),\n        _xlpm.rowData, _xlfn.TAKE(_xlfn.DROP('Claim Entry'!54:54,,12), , COLUMNS(_xlpm.spill)),\n        SUM(_xlfn._xlws.FILTER(_xlpm.rowData, ISNUMBER(_xlpm.rowData)))\n    ),\n\"\")","v":""},0,null,null,{"$f":"IF(G54=\"\",\"\",_xlfn.LET(_xlpm.d,$G$5:G54,COUNT(_xlfn.UNIQUE(_xlpm.d))))","v":""}]

{"sheet":"Claim Totals","index":4,"n_rows":9,"n_cols":4,"rows_kept":9,"cut":false,"hidden":false,"merged":[]}
[]
[null,null,"Summary of Totals from 'Claim Entry' Sheet"]
[]
[null,null,null,{"$f":"INDEX(_xlfn.ANCHORARRAY('Claim Entry'!M2), 3, 0)","v":{"$error":"#REF!"}}]
[null,null,"Subgrant Number",{"$f":"INDEX(_xlfn.ANCHORARRAY('Claim Entry'!M2), 2, 0)","v":{"$error":"#REF!"}}]
[null,null,"Amount Allocated for SY 25-26",{"$f":"IF(_xlfn.ANCHORARRAY(D4)=\"\",\"\",2023)","v":{"$error":"#REF!"}}]
[null,null,"Remaining Amount Available",{"$f":"_xlfn.ANCHORARRAY(D6)-_xlfn.ANCHORARRAY(D8)","v":{"$error":"#REF!"}}]
["Claim\nNo.","Claim\nDate","Totals by Site ⇒\n& by Claim No. ⇓",{"$f":"_xlfn.BYCOL(_xlfn.ANCHORARRAY(D9), _xlfn.LAMBDA(_xlpm.c, SUM(_xlpm.c)))","v":{"$error":"#REF!"}}]
[{"$f":"_xlfn.UNIQUE(_xlfn._xlws.FILTER('Claim Entry'!F5:F54, 'Claim Entry'!F5:F54<>\"\"))","v":{"$error":"#VALUE!"}},{"$f":"_xlfn.XLOOKUP(_xlfn.ANCHORARRAY(A9),'Claim Entry'!$F$5:$F$104,'Claim Entry'!$G$5:$G$104)","v":{"$error":"#VALUE!"}},{"$f":"_xlfn.BYROW(_xlfn.ANCHORARRAY(D9), _xlfn.LAMBDA(_xlpm.r, SUM(_xlpm.r)))","v":{"$error":"#REF!"}},{"$f":"_xlfn.MAKEARRAY(\n    ROWS(_xlfn.ANCHORARRAY('Claim Totals'!B9)),\n    COLUMNS(INDEX(_xlfn.ANCHORARRAY('Claim Entry'!M2), 3, 0)),\n    _xlfn.LAMBDA(_xlpm.r,_xlpm.c,\n        SUMPRODUCT(\n            ('Claim Entry'!G5:G104 = INDEX(_xlfn.ANCHORARRAY('Claim Totals'!B9), _xlpm.r)) *\n            OFFSET('Claim Entry'!M5, 0, _xlpm.c-1, ROWS('Claim Entry'!G5:G104), 1)\n        )\n    )\n)","v":{"$error":"#REF!"}}]

{"sheet":"sponsor dropdowns","index":5,"n_rows":111,"n_cols":12,"rows_kept":111,"cut":false,"hidden":true,"merged":[]}
["Select Sponsor",null,"Site Num","Sites","Subgrant No.",null,"Reasons",null,"Select Sponsor","Site Num","Sites","Subgrant No."]
["Alsea SD 7J",null,{"$f":"IF(\n  OR(Sponsor_Name = \"\", Sponsor_Name = \"Select Sponsor\"),\n  \"\",\n  _xlfn.CHOOSECOLS(_xlfn._xlws.FILTER('BATB Reqd'!A:G,'BATB Reqd'!B:B = Sponsor_Name), 3, 4, 7)\n)","v":""},null,null,null,"Advertisement and promotion",null,"Wild Things Unified School District",90001,"Max's Island Elementary School","SG-90001-ME"]
["Astoria SD",null,null,null,null,null,"Create more appealing, nutritious offerings for students",null,"Wild Things Unified School District",90002,"Rumpus Middle School","SG-90002-RM"]
["Athena-Weston SD 29RJ",null,null,null,null,null,"Crowd Control",null,"Wild Things Unified School District",90003,"Crown & Scepter High School ","SG-90003-CS"]
["Baker SD 5J",null,null,null,null,null,"Efficient service lines"]
["Bend-LaPine SD",null,null,null,null,null,"Enhance breakfast after the bell serving area"]
["Bethel SD 52",null,null,null,null,null,"Improve efficiency of kitchen"]
["Brookings-Harbor SD 17C",null,null,null,null,null,"Maintain safe serving temperatures"]
["Butte Falls SD 91",null,null,null,null,null,"Organize food and supplies storage"]
["Cascade SD 5",null,null,null,null,null,"Prepare or serve food"]
["Centennial SD 28J",null,null,null,null,null,"Quicker wait time for students to receive a reimbursable meal"]
["Central Curry SD 1",null,null,null,null,null,"Racks for organization"]
["Central Point SD",null,null,null,null,null,"Sanitation or food safety"]
["Central SD 13J",null,null,null,null,null,"Serve grab and go and second chance breakfast models"]
["Clatskanie SD 6J",null,null,null,null,null,"Transporting food to service area"]
["Coos Bay SD 9",null,null,null,null,null,"Upgrade/Replace/Repair Equipment"]
["Coquille SD",null,null,null,null,null,"Will increase participation"]
["Corvallis SD 509J"]
["Crook Co SD"]
["Crow-Applegate-Lorane"]
["Culver SD"]
["Dallas SD"]
["David Douglas SD 40"]
["Days Creek SD 15"]
["Dayton SD 8"]
["Eagle Point SD"]
["Eugene SD 4J"]
["Falls City SD 57"]
["Forest Grove SD 15"]
["Gervais SD"]
["Gladstone SD 115"]
["Glendale SD 77"]
["Grants Pass SD"]
["Greater Albany SD"]
["Gresham-Barlow SD 10J"]
["Harrisburg SD"]
["Hillsboro SD 1J"]
["Hood River SD"]
["Huntington SD"]
["Jefferson Co SD 509"]
["Jefferson SD 14J"]
["Joseph SD 6"]
["Klamath Co SD"]
["Klamath Falls SD"]
["LaGrande SD"]
["Lakeview SD"]
["Lebanon Community SD 9"]
["Lincoln Co SD"]
["Long Creek SD 17"]
["Lowell SD 71"]
["Madrone Trail Public Charter School"]
["Mapleton SD 32"]
["Marcola SD 79J"]
["McKenzie SD 68"]
["McMinnville SD 40"]
["Medford SD 549"]
["Milton-Freewater SD 7"]
["Monument SD 8"]
["Morrow Co SD"]
["Mosier Community School"]
["Mt. Angel SD 91"]
["Multnomah ESD"]
["Myrtle Point SD 41"]
["Neah-Kah-Nie SD 56"]
["Nestucca Valley SD 101J"]
["Network Charter School"]
["Newberg SD 29J"]
["North Bend SD 13"]
["North Clackamas SD 12"]
["North Douglas SD 22"]
["North Lake SD 14"]
["North Santiam SD 29"]
["North Wasco Co. SD"]
["Nyssa SD 26"]
["Oakland SD"]
["Oakridge SD 76"]
["Ontario SD"]
["Oregon City SD 62"]
["Oregon School for the Deaf"]
["Parkrose SD 3"]
["Phoenix-Talent SD"]
["Pilot Rock SD 2"]
["Port Orford-Langlois SD"]
["Portland SD"]
["Prospect SD 59"]
["Rainier SD 13"]
["Reedsport SD 105"]
["Reynolds SD 7"]
["Riddle SD 70"]
["Roseburg SD 4"]
["Salem-Keizer SD 24J"]
["Scappoose SD"]
["Sheridan SD 48J"]
["Silver Falls SD 4"]
["Siuslaw SD 97J"]
["South Umpqua SD 19"]
["South Wasco Co SD"]
["Springfield SD 19"]
["St. Helens SD 502"]
["Stanfield SD 61"]
["Sutherlin SD 130"]
["Sweet Home SD 55"]
["Three Rivers SD"]
["Tigard-Tualatin SD 23J"]
["Umatilla SD 6"]
["Vale SD 84"]
["Vernonia SD 47J"]
["Willamina SD 30J"]
["Winston-Dillard SD 116"]
["Woodburn SD 103"]
["Yoncalla SD 32"]

{"sheet":"BATB Reqd","index":6,"n_rows":477,"n_cols":8,"rows_kept":477,"cut":false,"hidden":true,"merged":[]}
["Sponsor Number","Sponsor Name","Site Number","Site Name","BAtB Required","BAtB Exemption Eligible","Grant No.","Round"]
[201001,"Alsea SD 7J",15014,"Alsea Schools","Yes","","87790",1]
[401002,"Astoria SD",10010,"Astor Elementary","Yes","","87808",1]
[3001001,"Athena-Weston SD 29RJ",14206,"Athena Elementary","Yes","","87809",1]
[3001001,"Athena-Weston SD 29RJ",11116,"Weston Middle","Yes","","87810",1]
[102001,"Baker SD 5J",16662,"Baker Early Learning Center","Yes","Yes","87811",1]
[102001,"Baker SD 5J",10017,"Brooklyn Primary School","Yes","Yes","87812",1]
[102001,"Baker SD 5J",14855,"Eagle Cap","Yes","","87813",1]
[102001,"Baker SD 5J",16879,"Eastern Oregon Headstart  Baker Center","Yes","Yes","87814",1]
[102001,"Baker SD 5J",10022,"South Baker Elementary","Yes","","87815",1]
[902001,"Bend-LaPine SD",10036,"Bear Creek Elementary","Yes","","87867",1]
[902001,"Bend-LaPine SD",10038,"Elk Meadow Elementary","Yes","","87875",1]
[902001,"Bend-LaPine SD",13454,"Ensworth Elementary","Yes","","87876",1]
[902001,"Bend-LaPine SD",10042,"LaPine Elementary","Yes","","87877",1]
[902001,"Bend-LaPine SD",10028,"LaPine High School","Yes","","87878",1]
[902001,"Bend-LaPine SD",10033,"LaPine Middle School","Yes","","87879",1]
[902001,"Bend-LaPine SD",14788,"Rosland Elementary","Yes","","87880",1]
[2002002,"Bethel SD 52",10581,"Cascade Middle","Yes","","87881",1]
[2002002,"Bethel SD 52",10584,"Danebo Elem","Yes","","87882",1]
[2002002,"Bethel SD 52",10585,"Fairfield Elem","Yes","","87883",1]
[2002002,"Bethel SD 52",10587,"Malabon Elem","Yes","","87884",1]
[802001,"Brookings-Harbor SD 17C",10389,"Azalea Middle","Yes","","87885",1]
[802001,"Brookings-Harbor SD 17C",10388,"Brooking-Harbor High","Yes","","87886",1]
[802001,"Brookings-Harbor SD 17C",10390,"Kalmiopsis Elem","Yes","","87887",1]
[1502001,"Butte Falls SD 91",14200,"Butte Falls Elementary Charter School","Yes","Yes","87888",1]
[1502001,"Butte Falls SD 91",10476,"Butte Falls High School Charter School","Yes","","87889",1]
[2403005,"Cascade SD 5",10814,"Aumsville Elem","Yes","","87890",1]
[2403005,"Cascade SD 5",16024,"Cascade Opportunity Center","Yes","","87891",1]
[2603006,"Centennial SD 28J",10925,"Meadows Elem","Yes","","87892",1]
[2603006,"Centennial SD 28J",16822,"Oliver Middle School","Yes","","87896",1]
[2603006,"Centennial SD 28J",10930,"Parklane Elem","Yes","","87895",1]
[2603006,"Centennial SD 28J",10926,"Patrick Lynch Elem","Yes","","87893",1]
[2603006,"Centennial SD 28J",10927,"Powell Butte Elem","Yes","","87894",1]
[803001,"Central Curry SD 1",10052,"Riley Creek Elementary","Yes","","87951",1]
[1503002,"Central Point SD",11627,"Jewett Elementary","Yes","","87952",1]
[1503002,"Central Point SD",11628,"Richardson Elementary","Yes","","87953",1]
[1503002,"Central Point SD",16828,"Rogue Primary","Yes","","87954",1]
[2703001,"Central SD 13J",12999,"Ash Creek","Yes","","87955",1]
[2703001,"Central SD 13J",11089,"Central High","Yes","","87956",1]
[2703001,"Central SD 13J",11092,"Independence Elem","Yes","","87957",1]
[2703001,"Central SD 13J",11093,"Monmouth Elem","Yes","","87958",1]
[2703001,"Central SD 13J",11090,"Talmadge  Middle","Yes","","87959",1]
[503001,"Clatskanie SD 6J",10327,"Clatskanie Elem","Yes","","87998",1]
[603004,"Coos Bay SD 9",10359,"Eastside Elementary","Yes","","87999",1]
[603004,"Coos Bay SD 9",13503,"Harding Building","Yes","","88000",1]
[603004,"Coos Bay SD 9",16516,"Little Pirates Preschool","Yes","Yes","88001",1]
[603004,"Coos Bay SD 9",10363,"Madison Elem","Yes","","88002",1]
[603004,"Coos Bay SD 9",16464,"Marshfield Junior High School","Yes","","88003",1]
[603004,"Coos Bay SD 9",10358,"Sunset Middle","Yes","","88004",1]
[603005,"Coquille SD",10057,"Lincoln Elementary","Yes","","88005",1]
[603005,"Coquille SD",16017,"Powers Elementary","Yes","","88006",1]
[603005,"Coquille SD",16016,"Powers High School","Yes","","88007",1]
[603005,"Coquille SD",16324,"Winter Lakes Elementary","Yes","","88008",1]
[603005,"Coquille SD",15023,"Winter Lakes High School","Yes","","88009",1]
[203003,"Corvallis SD 509J",10178,"Garfield Elem","Yes","","88010",1]
[203003,"Corvallis SD 509J",10185,"Letitia Carson Elementary","Yes","","88011",1]
[203003,"Corvallis SD 509J",10183,"Lincoln Elem","Yes","","88012",1]
[203003,"Corvallis SD 509J",10184,"Mt View Elem","Yes","","88013",1]
[703001,"Crook Co SD",16101,"Pioneer Alternative High School","Yes","","88014",1]
[2003009,"Crow-Applegate-Lorane",10597,"Applegate Elem","Yes","Yes","88015",1]
[1603003,"Culver SD",14202,"Culver Elementary School","Yes","","88016",1]
[1603003,"Culver SD",14201,"Culver Middle School","Yes","","88017",1]
[2704001,"Dallas SD",11095,"Dallas High (Morrison Campus)","Yes","","88018",1]
[2704001,"Dallas SD",10066,"LaCreole Middle School","Yes","","88019",1]
[2704001,"Dallas SD",10068,"Lyle Elementary","Yes","","88020",1]
[2704001,"Dallas SD",10069,"Oakdale Heights Elementary","Yes","","88021",1]
[2604001,"David Douglas SD 40",10937,"Alice Ott Middle","Yes","","88022",1]
[2604001,"David Douglas SD 40",10939,"Cherry Park Elem","Yes","","88023",1]
[2604001,"David Douglas SD 40",12494,"Earl Boyles","Yes","","88024",1]
[2604001,"David Douglas SD 40",10938,"Floyd Light Middle","Yes","","88025",1]
[2604001,"David Douglas SD 40",10940,"Gilbert Heights Elem","Yes","","88026",1]
[2604001,"David Douglas SD 40",10941,"Gilbert Park Elem","Yes","","88027",1]
[2604001,"David Douglas SD 40",10942,"Lincoln Park Elem","Yes","","88028",1]
[2604001,"David Douglas SD 40",10943,"Menlo Park Elem","Yes","","88029",1]
[2604001,"David Douglas SD 40",10944,"Mill Park Elem","Yes","","88030",1]
[2604001,"David Douglas SD 40",13660,"Ron Russell Middle School","Yes","","88031",1]
[2604001,"David Douglas SD 40",10945,"Ventura Park Elem","Yes","","88032",1]
[2604001,"David Douglas SD 40",10946,"West Powellhurst Elem","Yes","","88801",1]
[1004001,"Days Creek SD 15",13793,"Days Creek Charter School","Yes","","88033",1]
[3604001,"Dayton SD 8",11300,"Dayton Grade School","Yes","","88034",1]
[3604001,"Dayton SD 8",14193,"Dayton High School","Yes","","88035",1]
[3604001,"Dayton SD 8",11299,"Dayton Jr High","Yes","","88036",1]
[1505001,"Eagle Point SD",11617,"Lower Table Rock Elementary","Yes","","88037",1]
[1505001,"Eagle Point SD",11618,"Shady Cove Elem","Yes","","88038",1]
[1505001,"Eagle Point SD",15285,"URCEO - At-Risk","Yes","","88040",1]
[1505001,"Eagle Point SD",11620,"Upper Table Rock Elementary","Yes","","88039",1]
[1505001,"Eagle Point SD",13133,"White Mountain Middle Sch","Yes","","88041",1]
[2005005,"Eugene SD 4J",10615,"Awbrey Park Elem","Yes","","88042",1]
[2005005,"Eugene SD 4J",13502,"Chavez","Yes","","88043",1]
[2005005,"Eugene SD 4J",10606,"Colin Kelly Middle","Yes","","88044",1]
[2005005,"Eugene SD 4J",10650,"Education Options East","Yes","","88045",1]
[2005005,"Eugene SD 4J",10645,"Family School","Yes","","88046",1]
[2005005,"Eugene SD 4J",15826,"Fox Hollow School","Yes","","88047",1]
[2005005,"Eugene SD 4J",13649,"Holt Elementary School","Yes","","88048",1]
[2005005,"Eugene SD 4J",10627,"Howard Elem","Yes","","88049",1]
[2005005,"Eugene SD 4J",10629,"McCornack Elem","Yes","","88050",1]
[2005005,"Eugene SD 4J",10602,"North Eugene High","Yes","","88051",1]
[2005005,"Eugene SD 4J",10631,"River Road Elem","Yes","","88052",1]
[2005005,"Eugene SD 4J",10633,"Spring Creek Elem","Yes","","88053",1]
[2005005,"Eugene SD 4J",10638,"Willagillespie Elem","Yes","","88054",1]
[2706001,"Falls City SD 57",11097,"Falls City Elem","Yes","","88055",1]
[2706001,"Falls City SD 57",11096,"Falls City High","Yes","","88056",1]
[3406001,"Forest Grove SD 15",15529,"CALC-Community Alternative Learning Center","Yes","","88057",1]
[3406001,"Forest Grove SD 15",11233,"Cornelius Elem","Yes","","88058",1]
[3406001,"Forest Grove SD 15",11235,"Echo Shaw Elem","Yes","","88059",1]
[3406001,"Forest Grove SD 15",13283,"Fern Hill Elementary","Yes","Yes","88060",1]
[3406001,"Forest Grove SD 15",11238,"Joseph Gale Elem","Yes","","88061",1]
[3406001,"Forest Grove SD 15",11232,"Neil Armstrong Middle","Yes","","88062",1]
[3406001,"Forest Grove SD 15",15531,"Oak Grove Academy","Yes","","88063",1]
[3406001,"Forest Grove SD 15",11239,"Tom McCall Upper Elem","Yes","","88064",1]
[2407001,"Gervais SD",15653,"Early Learning Center","Yes","Yes","88065",1]
[2407001,"Gervais SD",15276,"Gervais Elementary","Yes","","88066",1]
[2407001,"Gervais SD",10073,"Gervais High School","Yes","","88067",1]
[2407001,"Gervais SD",10076,"Gervais Middle School","Yes","","88068",1]
[307001,"Gladstone SD 115",14405,"Gladstone Center for Children and Families (GCCF)","Yes","","88069",1]
[1007001,"Glendale SD 77",10413,"Glendale Elem","Yes","","88070",1]
[1707001,"Grants Pass SD",10090,"Allen Dale Elementary","Yes","","88071",1]
[1707001,"Grants Pass SD",16866,"Gladiola High School","Yes","","88072",1]
[1707001,"Grants Pass SD",10092,"Lincoln Elementary","Yes","","88073",1]
[1707001,"Grants Pass SD",10093,"Parkside Elementary","Yes","","88074",1]
[1707001,"Grants Pass SD",10095,"Riverside Elementary","Yes","","88075",1]
[2207001,"Greater Albany SD",12512,"Albany Options","Yes","","88076",1]
[2207001,"Greater Albany SD",10741,"Calapooia Middle","Yes","","88077",1]
[2207001,"Greater Albany SD",10744,"Central Elem","Yes","","88078",1]
[2207001,"Greater Albany SD",10746,"Lafayette Elem","Yes","","88079",1]
[2207001,"Greater Albany SD",10742,"Memorial Middle","Yes","","88080",1]
[2207001,"Greater Albany SD",10749,"Oak Elem","Yes","","88081",1]
[2207001,"Greater Albany SD",10750,"Periwinkle Elemenetary School","Yes","","88082",1]
[2207001,"Greater Albany SD",10739,"South Albany High","Yes","","88083",1]
[2207001,"Greater Albany SD",10751,"South Shore Elem","Yes","Yes","88084",1]
[2207001,"Greater Albany SD",10752,"Sunrise Elem","Yes","","88085",1]
[2207001,"Greater Albany SD",10753,"Takena Elem","Yes","","88086",1]
[2207001,"Greater Albany SD",10754,"Tangent Elem","Yes","","88087",1]
[2207001,"Greater Albany SD",10755,"Waverly Elem","Yes","","88088",1]
[2607003,"Gresham-Barlow SD 10J",13850,"Center for Advance Learning","Yes","","88089",1]
[2607003,"Gresham-Barlow SD 10J",10949,"Clear Creek Middle","Yes","","88090",1]
[2607003,"Gresham-Barlow SD 10J",10955,"East Gresham Elem","Yes","","88091",1]
[2607003,"Gresham-Barlow SD 10J",10957,"Hall Elem","Yes","","88092",1]
[2607003,"Gresham-Barlow SD 10J",10958,"Highland Elem","Yes","","88093",1]
[2607003,"Gresham-Barlow SD 10J",10961,"North Gresham Elem","Yes","","88094",1]
[2208001,"Harrisburg SD",10103,"Harrisburg Elementary","Yes","","88095",1]
[3408001,"Hillsboro SD 1J",11251,"Butternut Creek Elem","Yes","","88096",1]
[3408001,"Hillsboro SD 1J",11253,"Eastwood Elem","Yes","","88097",1]
[3408001,"Hillsboro SD 1J",14268,"Free Orchards Elementary","Yes","","88098",1]
[3408001,"Hillsboro SD 1J",11255,"Groner Elem","Yes","","88099",1]
[3408001,"Hillsboro SD 1J",11245,"Hillsboro High","Yes","","88100",1]
[3408001,"Hillsboro SD 1J",14267,"Lincoln Street Elementary","Yes","","88101",1]
[3408001,"Hillsboro SD 1J",11261,"Mooberry Elem","Yes","","88102",1]
[3408001,"Hillsboro SD 1J",11647,"Oak Street Campus","Yes","","88103",1]
[3408001,"Hillsboro SD 1J",11264,"Reedville Elem","Yes","","88104",1]
[3408001,"Hillsboro SD 1J",14529,"South Meadows Middle School","Yes","","88105",1]
[3408001,"Hillsboro SD 1J",11266,"W L Henry Elem","Yes","","88106",1]
[3408001,"Hillsboro SD 1J",11267,"W V McKinney Elem","Yes","","88107",1]
[3408001,"Hillsboro SD 1J",11268,"West Union Elem","Yes","","88108",1]
[3408001,"Hillsboro SD 1J",11269,"Witch Hazel Elem","Yes","","88109",1]
[1408001,"Hood River SD",10111,"Cascade Locks School","Yes","","88110",1]
[1408001,"Hood River SD",10113,"Mid Valley Elementary","Yes","","88111",1]
[1408001,"Hood River SD",10114,"Parkdale Elementary","Yes","","88112",1]
[1408001,"Hood River SD",10109,"Wy'East Middle School","Yes","","88113",1]
[108001,"Huntington SD",10118,"Huntington School","Yes","","88114",1]
[1610001,"Jefferson Co SD 509",13578,"Buff Elementary","Yes","","88115",1]
[1610001,"Jefferson Co SD 509",10525,"Jefferson County Middle","Yes","","88116",1]
[1610001,"Jefferson Co SD 509",10524,"Madras High","Yes","","88117",1]
[1610001,"Jefferson Co SD 509",15369,"Warm Springs K-8 Academy","Yes","","88118",1]
[2410001,"Jefferson SD 14J",10822,"Jefferson Elem","Yes","","88119",1]
[3210001,"Joseph SD 6",11172,"Imnaha Elem","Yes","Yes","88120",1]
[1811002,"Klamath Co SD",10557,"Bonanza Elem","Yes","","88121",1]
[1811002,"Klamath Co SD",10549,"Bonanza High","Yes","Yes","88122",1]
[1811002,"Klamath Co SD",10554,"Brixner Jr High","Yes","","88123",1]
[1811002,"Klamath Co SD",10558,"Chiloquin Elem","Yes","","88124",1]
[1811002,"Klamath Co SD",10550,"Chiloquin High","Yes","","88125",1]
[1811002,"Klamath Co SD",14807,"Falcon Heights Henley HS","Yes","","88126",1]
[1811002,"Klamath Co SD",10560,"Ferguson Elem","Yes","","88127",1]
[1811002,"Klamath Co SD",10561,"Gearhart Elem","Yes","Yes","88128",1]
[1811002,"Klamath Co SD",10562,"Gilchrist Elem","Yes","Yes","88129",1]
[1811002,"Klamath Co SD",10551,"Gilchrist High","Yes","","88130",1]
[1811002,"Klamath Co SD",10553,"Lost River High","Yes","","88131",1]
[1811002,"Klamath Co SD",10565,"Malin Elem","Yes","","88132",1]
[1811002,"Klamath Co SD",10568,"Merrill Elem","Yes","","88133",1]
[1811002,"Klamath Co SD",10566,"Peterson Elem","Yes","","88134",1]
[1811002,"Klamath Co SD",10567,"Shasta Elem","Yes","","88135",1]
[1811002,"Klamath Co SD",10569,"Stearns Elem","Yes","","88136",1]
[1811005,"Klamath Falls SD",10125,"Joseph Conger Elementary","Yes","","88137",1]
[1811005,"Klamath Falls SD",15677,"Klamath Learning Center","Yes","","88138",1]
[1811005,"Klamath Falls SD",10121,"Klamath Union High School","Yes","","88139",1]
[1811005,"Klamath Falls SD",10126,"Mills Elementary","Yes","","88140",1]
[1811005,"Klamath Falls SD",10127,"Pelican Elementary","Yes","","88141",1]
[1811005,"Klamath Falls SD",10123,"Ponderosa Jr High","Yes","","88142",1]
[3112001,"LaGrande SD",11160,"Greenwood Elem","Yes","","88143",1]
[1912001,"Lakeview SD",10572,"Daly Middle","Yes","","88144",1]
[1912001,"Lakeview SD",10573,"Fremont/Hay Elem","Yes","","88145",1]
[1912001,"Lakeview SD",14203,"Lakeview Sr High School","Yes","","88146",1]
[2212001,"Lebanon Community SD 9",10764,"Cascades School","Yes","","88147",1]
[2212001,"Lebanon Community SD 9",10767,"Green Acres Elem","Yes","","88148",1]
[2212001,"Lebanon Community SD 9",10768,"Hamilton Creek Elem","Yes","","88149",1]
[2212001,"Lebanon Community SD 9",10769,"Lacomb Elem","Yes","","88150",1]
[2212001,"Lebanon Community SD 9",10759,"Lebanon High","Yes","","88151",1]
[2212001,"Lebanon Community SD 9",13031,"Pioneer School","Yes","","88152",1]
[2212001,"Lebanon Community SD 9",13030,"Riverview School","Yes","","88153",1]
[2212001,"Lebanon Community SD 9",10762,"Seven Oak Middle","Yes","","88154",1]
[2112001,"Lincoln Co SD",10734,"Crestview Heights","Yes","","88155",1]
[2112001,"Lincoln Co SD",10728,"Eddyville Charter School","Yes","","88156",1]
[2112001,"Lincoln Co SD",10717,"Newport High","Yes","","88157",1]
[2112001,"Lincoln Co SD",10722,"Newport Middle School","Yes","","88158",1]
[2112001,"Lincoln Co SD",10730,"Oceanlake Elem","Yes","Yes","88159",1]
[2112001,"Lincoln Co SD",10731,"Sam Case Elem","Yes","","88160",1]
[2112001,"Lincoln Co SD",10733,"Taft Elem","Yes","","88161",1]
[2112001,"Lincoln Co SD",10718,"Taft High","Yes","","88162",1]
[2112001,"Lincoln Co SD",10724,"Toledo Elementary","Yes","","88163",1]
[2112001,"Lincoln Co SD",10719,"Toledo High","Yes","","88164",1]
[2112001,"Lincoln Co SD",10720,"Waldport High","Yes","","88165",1]
[2112001,"Lincoln Co SD",15633,"Yaquina View Elementary","Yes","","88166",1]
[1212001,"Long Creek SD 17",10461,"Long Creek School","Yes","Yes","88167",1]
[2012005,"Lowell SD 71",10661,"Lowell High","Yes","","88169",1]
[2012005,"Lowell SD 71",10662,"Lundy Elem","Yes","","88168",1]
[1513002,"Madrone Trail Public Charter School",16874,"Madrone Trail Public Charter School","Yes","","88170",1]
[2013001,"Mapleton SD 32",14211,"Mapleton Elementary","Yes","","88172",1]
[2013001,"Mapleton SD 32",10664,"Mapleton Jr/Sr High","Yes","","88171",1]
[2013002,"Marcola SD 79J",10667,"Marcola Elem","Yes","","88173",1]
[2013003,"McKenzie SD 68",10669,"MRCS K-12","Yes","","88174",1]
[3613001,"McMinnville SD 40",11303,"F Patton Middle","Yes","","88175",1]
[3613001,"McMinnville SD 40",11677,"Grandhaven","Yes","","88176",1]
[3613001,"McMinnville SD 40",11301,"McMinnville High","Yes","","88177",1]
[3613001,"McMinnville SD 40",11308,"Newby Elem","Yes","","88178",1]
[3613001,"McMinnville SD 40",14226,"Sue Buel Elementary","Yes","Yes","88179",1]
[3613001,"McMinnville SD 40",11309,"Wascher Elem","Yes","","88180",1]
[3613001,"McMinnville SD 40",11305,"Willamette Elementary","Yes","","88181",1]
[1513001,"Medford SD 549",10499,"Griffin Creek Elem","Yes","","88182",1]
[1513001,"Medford SD 549",10496,"Hedrick Middle","Yes","","88183",1]
[1513001,"Medford SD 549",10501,"Howard Elem","Yes","","88184",1]
[1513001,"Medford SD 549",14407,"Innovation Academy","Yes","","88185",1]
[1513001,"Medford SD 549",10502,"Jackson Elementary","Yes","","88186",1]
[1513001,"Medford SD 549",10504,"Jefferson Elem","Yes","","88187",1]
[1513001,"Medford SD 549",10505,"Kennedy Elem","Yes","","88188",1]
[1513001,"Medford SD 549",10497,"McLoughlin Middle","Yes","","88189",1]
[1513001,"Medford SD 549",10494,"North Medford High","Yes","","88190",1]
[1513001,"Medford SD 549",10507,"Oak Grove","Yes","","88192",1]
[1513001,"Medford SD 549",16894,"Oakdale Middle School","Yes","","88191",1]
[1513001,"Medford SD 549",10508,"Roosevelt Elem","Yes","","88193",1]
[1513001,"Medford SD 549",10509,"Ruch Elem","Yes","","88194",1]
[1513001,"Medford SD 549",10495,"South Medford High","Yes","","88195",1]
[1513001,"Medford SD 549",10510,"Washington Elem","Yes","","88196",1]
[1513001,"Medford SD 549",10511,"Wilson Elem","Yes","","88197",1]
[3013001,"Milton-Freewater SD 7",11129,"Central Middle","Yes","","88198",1]
[3013001,"Milton-Freewater SD 7",16086,"Gib Olinger Elementary","Yes","","88199",1]
[1213001,"Monument SD 8",10463,"Monument School","Yes","","88200",1]
[2513001,"Morrow Co SD",10918,"A C Houghton Elem","Yes","","88201",1]
[2513001,"Morrow Co SD",13374,"Irrigon Elementary","Yes","","88202",1]
[2513001,"Morrow Co SD",10921,"Sam Boardman Elem","Yes","","88203",1]
[2513001,"Morrow Co SD",13373,"Windy River Elementary","Yes","","88204",1]
[3313002,"Mosier Community School",15896,"Mosier Community School","Yes","","88205",1]
[2413003,"Mt. Angel SD 91",10825,"St Mary's Public School","Yes","","88206",1]
[2613008,"Multnomah ESD",12284,"Arata Creek","Yes","","88207",1]
[2613008,"Multnomah ESD",12828,"Burlingame Creek","Yes","","88208",1]
[2613008,"Multnomah ESD",14027,"Wheatley School","Yes","","88209",1]
[613002,"Myrtle Point SD 41",10371,"Myrtle Crest School","Yes","","88210",1]
[2914001,"Neah-Kah-Nie SD 56",11104,"Garibaldi Elem","Yes","","88211",1]
[2914001,"Neah-Kah-Nie SD 56",14213,"Neah-Kah-Nie High School","Yes","","88212",1]
[2914001,"Neah-Kah-Nie SD 56",11105,"Nehalem Elem","Yes","","88213",1]
[2914002,"Nestucca Valley SD 101J",11108,"Nestucca   K8/Nestucca  Valley Elementary - Previous name","Yes","","88214",1]
[2914002,"Nestucca Valley SD 101J",11106,"Nestucca High","Yes","","88215",1]
[2014003,"Network Charter School",13580,"Network Charter School","Yes","","88216",1]
[3614001,"Newberg SD 29J",15393,"Catalyst High School","Yes","","88217",1]
[3614001,"Newberg SD 29J",11315,"Edwards Elem","Yes","","88218",1]
[614001,"North Bend SD 13",10377,"Hillcrest Elem","Yes","","88219",1]
[614001,"North Bend SD 13",10378,"North Bay Elem","Yes","","88220",1]
[614001,"North Bend SD 13",10375,"North Bend Middle School","Yes","","88221",1]
[614001,"North Bend SD 13",10374,"North Bend Sr High","Yes","","88222",1]
[314001,"North Clackamas SD 12",10257,"Linwood Elem","Yes","","88223",1]
[314001,"North Clackamas SD 12",13196,"New Urban High School","Yes","","88226",1]
[314001,"North Clackamas SD 12",10262,"Oak Grove Elem","Yes","","88224",1]
[314001,"North Clackamas SD 12",10267,"Whitcomb Elem","Yes","","88225",1]
[1014001,"North Douglas SD 22",10421,"North Douglas Elem. Cafeteria","Yes","","88227",1]
[1914001,"North Lake SD 14",10577,"North Lake School","Yes","","88228",1]
[2414003,"North Santiam SD 29",10834,"Stayton Elem","Yes","","88229",1]
[2414003,"North Santiam SD 29",10830,"Stayton Middle","Yes","","88230",1]
[3314003,"North Wasco Co. SD",13353,"Chenowith Elem","Yes","","88231",1]
[3314003,"North Wasco Co. SD",13357,"Colonel Wright Elem","Yes","","88232",1]
[3314003,"North Wasco Co. SD",13358,"Dry Hollow Elem","Yes","","88233",1]
[3314003,"North Wasco Co. SD",13360,"The Dalles Middle","Yes","","88234",1]
[3314003,"North Wasco Co. SD",15120,"Wahtonka Campus","Yes","","88235",1]
[2314001,"Nyssa SD 26",15720,"Nyssa Early Learning  Program","Yes","Yes","88237",1]
[2314001,"Nyssa SD 26",10800,"Nyssa Elem","Yes","Yes","88236",1]
[2314001,"Nyssa SD 26",10798,"Nyssa High","Yes","","88238",1]
[1015001,"Oakland SD",11612,"Lincoln Middle School","Yes","","88239",1]
[1015001,"Oakland SD",14197,"Oakland Elementary","Yes","Yes","88240",1]
[1015001,"Oakland SD",10422,"Oakland High","Yes","","88241",1]
[2015001,"Oakridge SD 76",10672,"Oakridge Elem","Yes","Yes","88242",1]
[2015001,"Oakridge SD 76",13799,"Oakridge Jr/Sr High","Yes","","88243",1]
[2315001,"Ontario SD",10804,"Aiken Elem","Yes","Yes","88244",1]
[2315001,"Ontario SD",10803,"Alameda Elem","Yes","","88245",1]
[2315001,"Ontario SD",10806,"May Roberts Elem","Yes","","88246",1]
[2315001,"Ontario SD",10802,"Ontario Middle","Yes","","88247",1]
[2315001,"Ontario SD",10801,"Ontario Sr High","Yes","","88248",1]
[315002,"Oregon City SD 62",17023,"Bridges to Independence","Yes","","88249",1]
[315002,"Oregon City SD 62",15697,"Eastham - Jackson Program","Yes","","88250",1]
[315002,"Oregon City SD 62",10288,"Oregon City Service Learning Academy","Yes","","88251",1]
[2415003,"Oregon School for the Deaf",11385,"Oregon School for the Deaf","Yes","","88252",1]
[2616002,"Parkrose SD 3",10967,"Prescott Elem","Yes","","88253",1]
[2616002,"Parkrose SD 3",10970,"Shaver Elem","Yes","","88254",1]
[1516001,"Phoenix-Talent SD",13385,"Armadillo Community Charter School","Yes","","88255",1]
[1516001,"Phoenix-Talent SD",10515,"Orchard Hill Elem","Yes","","88256",1]
[1516001,"Phoenix-Talent SD",10516,"Phoenix Elem","Yes","","88257",1]
[1516001,"Phoenix-Talent SD",10514,"Talent Middle","Yes","","88258",1]
[3016002,"Pilot Rock SD 2",11142,"Pilot Rock Elem","Yes","","88259",1]
[816001,"Port Orford-Langlois SD",10386,"Driftwood Elem","Yes","","88260",1]
[2616011,"Portland SD",11009,"Boise/Eliot Elem","Yes","","88261",1]
[2616011,"Portland SD",15515,"CTC NE","Yes","","88266",1]
[2616011,"Portland SD",15514,"CTC SE","Yes","","88267",1]
[2616011,"Portland SD",10995,"Cesar Chavez","Yes","","88262",1]
[2616011,"Portland SD",11015,"Chapman Elem","Yes","","88263",1]
[2616011,"Portland SD",16456,"Clarendon Early Learning Academy","Yes","Yes","88264",1]
[2616011,"Portland SD",11018,"Clark Elem","Yes","","88265",1]
[2616011,"Portland SD",11022,"Faubion Elem","Yes","","88268",1]
[2616011,"Portland SD",10986,"George Middle","Yes","","88269",1]
[2616011,"Portland SD",11025,"Grout Elem","Yes","","88270",1]
[2616011,"Portland SD",14257,"Harrison Park Middle","Yes","","88271",1]
[2616011,"Portland SD",11031,"James John Elementary","Yes","","88272",1]
[2616011,"Portland SD",10975,"Jefferson High","Yes","","88273",1]
[2616011,"Portland SD",10991,"Kellogg Middle","Yes","","88274",1]
[2616011,"Portland SD",11032,"Kelly Elementary","Yes","","88275",1]
[2616011,"Portland SD",10992,"Lane Middle","Yes","","88276",1]
[2616011,"Portland SD",11036,"Lee Elem","Yes","","88277",1]
[2616011,"Portland SD",11037,"Lent Elem","Yes","","88278",1]
[2616011,"Portland SD",11034,"Martin Luther King Jr School","Yes","","88279",1]
[2616011,"Portland SD",11042,"Marysville Elem","Yes","","88280",1]
[2616011,"Portland SD",13801,"Pioneer Programs","Yes","Yes","88281",1]
[2616011,"Portland SD",11047,"Rigler Elem","Yes","","88282",1]
[2616011,"Portland SD",10980,"Roosevelt High","Yes","","88283",1]
[2616011,"Portland SD",13804,"Rosa Parks Elem","Yes","","88284",1]
[2616011,"Portland SD",10988,"Roseway Heights Middle School","Yes","","88285",1]
[2616011,"Portland SD",16074,"Sacajawea Head Start","Yes","Yes","88286",1]
[2616011,"Portland SD",11050,"Scott Elem","Yes","","88287",1]
[2616011,"Portland SD",11051,"Sitton Elementary","Yes","","88288",1]
[2616011,"Portland SD",11057,"Vestal Elem","Yes","","88289",1]
[2616011,"Portland SD",11059,"Whitman Elem","Yes","","88290",1]
[2616011,"Portland SD",11061,"Woodlawn Elementary","Yes","","88291",1]
[2616011,"Portland SD",11064,"Woodmere Elem","Yes","","88292",1]
[2616011,"Portland SD",16035,"Youth Progress Association","Yes","Yes","88293",1]
[1516002,"Prospect SD 59",10519,"Prospect School","Yes","","88294",1]
[518001,"Rainier SD 13",14196,"Hudson Park Elementary","Yes","","88295",1]
[518001,"Rainier SD 13",10330,"Rainier Jr/Sr High School","Yes","","88296",1]
[1018001,"Reedsport SD 105",10426,"Highland Elem","Yes","","88298",1]
[1018001,"Reedsport SD 105",10424,"Reedsport Community Charter School","Yes","","88297",1]
[2618002,"Reynolds SD 7",11077,"Alder Elem","Yes","","88299",1]
[2618002,"Reynolds SD 7",11078,"Davis Elem","Yes","","88300",1]
[2618002,"Reynolds SD 7",11079,"Fairview Elementary","Yes","","88301",1]
[2618002,"Reynolds SD 7",11080,"Glenfair Elem","Yes","","88302",1]
[2618002,"Reynolds SD 7",11081,"Hartley Elem","Yes","","88303",1]
[2618002,"Reynolds SD 7",11074,"Hauton B Lee Middle","Yes","","88304",1]
[2618002,"Reynolds SD 7",11082,"Margaret Scott Elem","Yes","","88305",1]
[2618002,"Reynolds SD 7",11073,"Reynolds High","Yes","","88306",1]
[2618002,"Reynolds SD 7",13214,"Reynolds Learning Academy","Yes","","88307",1]
[2618002,"Reynolds SD 7",11075,"Reynolds Middle","Yes","","88308",1]
[2618002,"Reynolds SD 7",14801,"Rockwood Prepatory Academy","Yes","","88309",1]
[2618002,"Reynolds SD 7",13213,"Salish Ponds Elementary","Yes","","88310",1]
[2618002,"Reynolds SD 7",11085,"Wilkes Elem","Yes","","88311",1]
[2618002,"Reynolds SD 7",11086,"Woodland Elem","Yes","","88312",1]
[1018002,"Riddle SD 70",10428,"Riddle Elem","Yes","","88313",1]
[1018004,"Roseburg SD 4",10432,"Eastwood Elem","Yes","","88314",1]
[1018004,"Roseburg SD 4",10433,"Fir Grove Elem","Yes","","88315",1]
[1018004,"Roseburg SD 4",10434,"Fullerton IV Elem","Yes","","88316",1]
[1018004,"Roseburg SD 4",10439,"Green Elementary","Yes","","88317",1]
[1018004,"Roseburg SD 4",10440,"Sunnyslope Elementary","Yes","","88318",1]
[1018004,"Roseburg SD 4",10438,"Winchester Elem","Yes","Yes","88319",1]
[2419004,"Salem-Keizer SD 24J",10850,"Auburn Elem","Yes","","88320",1]
[2419004,"Salem-Keizer SD 24J",15674,"BIC","Yes","","88323",1]
[2419004,"Salem-Keizer SD 24J",16855,"BIC 2","Yes","","88324",1]
[2419004,"Salem-Keizer SD 24J",16856,"Baker Early Childhood Center","Yes","","88321",1]
[2419004,"Salem-Keizer SD 24J",16854,"Bethel Early Child Learning Center","Yes","","88322",1]
[2419004,"Salem-Keizer SD 24J",10854,"Bush Elem","Yes","","88325",1]
[2419004,"Salem-Keizer SD 24J",15153,"Chavez Elementary","Yes","","88326",1]
[2419004,"Salem-Keizer SD 24J",12791,"Claggett Creek Secondary","Yes","","88327",1]
[2419004,"Salem-Keizer SD 24J",13679,"Downtown Learning Center","Yes","","88328",1]
[2419004,"Salem-Keizer SD 24J",15617,"ESCC (East Salem Community Center)","Yes","","88330",1]
[2419004,"Salem-Keizer SD 24J",10859,"Englewood Elem","Yes","","88329",1]
[2419004,"Salem-Keizer SD 24J",10873,"Eyre Elementary","Yes","","88331",1]
[2419004,"Salem-Keizer SD 24J",10861,"Four Corners Elem","Yes","","88332",1]
[2419004,"Salem-Keizer SD 24J",12788,"Hallman Elementary","Yes","","88333",1]
[2419004,"Salem-Keizer SD 24J",13116,"Harritt Elementary","Yes","","88334",1]
[2419004,"Salem-Keizer SD 24J",10865,"Hayesville Elem","Yes","","88335",1]
[2419004,"Salem-Keizer SD 24J",12866,"Highland","Yes","","88336",1]
[2419004,"Salem-Keizer SD 24J",10868,"Hoover Elem","Yes","","88337",1]
[2419004,"Salem-Keizer SD 24J",10842,"Houck Middle","Yes","","88338",1]
[2419004,"Salem-Keizer SD 24J",10869,"Keizer Elem","Yes","","88339",1]
[2419004,"Salem-Keizer SD 24J",10870,"Kennedy Elem","Yes","","88340",1]
[2419004,"Salem-Keizer SD 24J",12787,"Lamb Elementary","Yes","","88341",1]
[2419004,"Salem-Keizer SD 24J",12997,"Lee Elementary","Yes","","88342",1]
[2419004,"Salem-Keizer SD 24J",10837,"McKay High","Yes","","88343",1]
[2419004,"Salem-Keizer SD 24J",12515,"Miller Elem","Yes","","88344",1]
[2419004,"Salem-Keizer SD 24J",10838,"North Salem High","Yes","","88345",1]
[2419004,"Salem-Keizer SD 24J",10845,"Parrish Middle","Yes","","88346",1]
[2419004,"Salem-Keizer SD 24J",10880,"Richmond Elem","Yes","","88347",1]
[2419004,"Salem-Keizer SD 24J",13626,"Roberts High School","Yes","","88348",1]
[2419004,"Salem-Keizer SD 24J",16029,"Roberts High School At Chemekata","Yes","","88349",1]
[2419004,"Salem-Keizer SD 24J",14834,"Roberts Middle School","Yes","","88350",1]
[2419004,"Salem-Keizer SD 24J",10884,"Scott Elem","Yes","","88351",1]
[2419004,"Salem-Keizer SD 24J",10846,"Stephens Middle","Yes","","88352",1]
[2419004,"Salem-Keizer SD 24J",10886,"Swegle Elem","Yes","","88353",1]
[2419004,"Salem-Keizer SD 24J",10847,"Waldo Middle","Yes","","88354",1]
[2419004,"Salem-Keizer SD 24J",10887,"Washington Elem","Yes","","88355",1]
[2419004,"Salem-Keizer SD 24J",12790,"Weddle Elementary","Yes","","88356",1]
[2419004,"Salem-Keizer SD 24J",10860,"Wright Elementary","Yes","","88357",1]
[2419004,"Salem-Keizer SD 24J",10888,"Yoshikai Elem","Yes","","88358",1]
[519001,"Scappoose SD",16144,"Head Start","Yes","","88359",1]
[3619001,"Sheridan SD 48J",13460,"Faulconer -Chapman School","Yes","","88360",1]
[3619001,"Sheridan SD 48J",17028,"Sheridan AllPrep Children's Center","Yes","","88361",1]
[2419006,"Silver Falls SD 4",16735,"Preschool Promise","Yes","Yes","88362",1]
[2419006,"Silver Falls SD 4",16885,"Sequoia Falls Academy","Yes","","88363",1]
[2019002,"Siuslaw SD 97J",10680,"Siuslaw Elem","Yes","","89443",1]
[2019002,"Siuslaw SD 97J",10678,"Siuslaw High","Yes","","88364",1]
[2019002,"Siuslaw SD 97J",17045,"Siuslaw West","Yes","","88365",1]
[1019001,"South Umpqua SD 19",10442,"Coffenberry Middle","Yes","","88366",1]
[1019001,"South Umpqua SD 19",10443,"Myrtle Creek Elem","Yes","","88369",1]
[1019001,"South Umpqua SD 19",10441,"South Umpqua High","Yes","","88367",1]
[1019001,"South Umpqua SD 19",10444,"Tri City Elem","Yes","","88368",1]
[3319001,"South Wasco Co SD",11184,"Maupin Elem","Yes","Yes","88370",1]
[3319001,"South Wasco Co SD",11183,"South Wasco County High School","Yes","","88371",1]
[2019007,"Springfield SD 19",10695,"Briggs Middle","Yes","","88372",1]
[2019007,"Springfield SD 19",10701,"Centennial Elem","Yes","","88373",1]
[2019007,"Springfield SD 19",10702,"Douglas Gardens Elem","Yes","","88374",1]
[2019007,"Springfield SD 19",10703,"Elizabeth Page Elem","Yes","","88375",1]
[2019007,"Springfield SD 19",14377,"Gateways High School","Yes","","88381",1]
[2019007,"Springfield SD 19",10705,"Guy Lee Elem","Yes","","88377",1]
[2019007,"Springfield SD 19",10696,"Hamlin Middle","Yes","","88376",1]
[2019007,"Springfield SD 19",10706,"Maple Elem","Yes","","88378",1]
[2019007,"Springfield SD 19",10709,"Mt Vernon Elem","Yes","","88379",1]
[2019007,"Springfield SD 19",10711,"Riverbend Elem","Yes","","88380",1]
[2019007,"Springfield SD 19",15105,"Two Rivers-Dos Rios Elementary","Yes","","88382",1]
[2019007,"Springfield SD 19",15162,"Willamette Leadership Academy","Yes","","88383",1]
[519003,"St. Helens SD 502",10343,"Columbia City School","Yes","","88384",1]
[519003,"St. Helens SD 502",10344,"Lewis & Clark Elem","Yes","","88385",1]
[519003,"St. Helens SD 502",10346,"McBride Elem","Yes","","88386",1]
[519003,"St. Helens SD 502",10348,"Plymouth High School","Yes","","88387",1]
[519003,"St. Helens SD 502",10342,"St Helens Middle","Yes","","88388",1]
[3019001,"Stanfield SD 61",11144,"Stanfield Elementary School","Yes","","88389",1]
[3019001,"Stanfield SD 61",11143,"Stanfield Secondary","Yes","","88390",1]
[1019003,"Sutherlin SD 130",10448,"East Sutherlin Primary","Yes","","88391",1]
[1019003,"Sutherlin SD 130",10449,"West Sutherlin Intermed","Yes","","88392",1]
[2219004,"Sweet Home SD 55",10785,"Foster Elem","Yes","","88393",1]
[2219004,"Sweet Home SD 55",10786,"Hawthorne Elem","Yes","","88394",1]
[2219004,"Sweet Home SD 55",10788,"Oak Heights Elem","Yes","","88396",1]
[2219004,"Sweet Home SD 55",10783,"Sweet Home Jr High","Yes","","88395",1]
[1720001,"Three Rivers SD",10537,"Applegate Elem","Yes","","88397",1]
[1720001,"Three Rivers SD",10538,"Evergreen Elem","Yes","","88398",1]
[1720001,"Three Rivers SD",10540,"Fort Vannoy Elem","Yes","","88400",1]
[1720001,"Three Rivers SD",10539,"Fruitdale Elem","Yes","","88399",1]
[1720001,"Three Rivers SD",10533,"Illinois Valley High","Yes","","88401",1]
[1720001,"Three Rivers SD",10535,"Lincoln Savage Middle","Yes","","88402",1]
[1720001,"Three Rivers SD",10536,"Lorna Byrne Middle","Yes","","88403",1]
[1720001,"Three Rivers SD",10542,"Madrona Elem","Yes","","88406",1]
[1720001,"Three Rivers SD",13727,"Manzanita Elementary","Yes","","88404",1]
[1720001,"Three Rivers SD",16706,"SOSA-Southern Oregon Success Academy","Yes","","88407",1]
[1720001,"Three Rivers SD",10546,"Williams Elem","Yes","","88405",1]
[3420001,"Tigard-Tualatin SD 23J",15619,"Creekside Community High School","Yes","","88408",1]
[3420001,"Tigard-Tualatin SD 23J",11285,"James Templeton Elem","Yes","","88409",1]
[3420001,"Tigard-Tualatin SD 23J",16877,"Lifeworks","Yes","","88410",1]
[3021002,"Umatilla SD 6",11148,"Clara Brownell Middle","Yes","","88411",1]
[3021002,"Umatilla SD 6",11149,"McNary Heights Elem","Yes","","88412",1]
[2322001,"Vale SD 84",14204,"Vale Elementary","Yes","Yes","88413",1]
[522001,"Vernonia SD 47J",10352,"Vernonia Elementary","Yes","","88414",1]
[522001,"Vernonia SD 47J",13645,"Vernonia Middle School","Yes","","88415",1]
[3623002,"Willamina SD 30J",11326,"Willamina Elem","Yes","","88416",1]
[1023001,"Winston-Dillard SD 116",13049,"Brockway Elementary","Yes","","88418",1]
[1023001,"Winston-Dillard SD 116",15345,"Dillard Alternative School","Yes","","88420",1]
[1023001,"Winston-Dillard SD 116",10453,"McGovern Elem","Yes","Yes","88417",1]
[1023001,"Winston-Dillard SD 116",10451,"Winston Middle","Yes","","88419",1]
[2423006,"Woodburn SD 103",14006,"Chemekata High School","Yes","","88428",1]
[2423006,"Woodburn SD 103",10908,"French Prairie Middle","Yes","","88421",1]
[2423006,"Woodburn SD 103",10910,"Heritage Elem","Yes","","88423",1]
[2423006,"Woodburn SD 103",10911,"Lincoln Elem","Yes","","88424",1]
[2423006,"Woodburn SD 103",10912,"Nelie Muir Elem","Yes","","88425",1]
[2423006,"Woodburn SD 103",13840,"Success","Yes","","88427",1]
[2423006,"Woodburn SD 103",10909,"Valor Middle","Yes","","88422",1]
[2423006,"Woodburn SD 103",10913,"Washington Elem","Yes","","88426",1]
[1025001,"Yoncalla SD 32",10456,"Yoncalla Elem","Yes","","88429",1]
[1025001,"Yoncalla SD 32",10455,"Yoncalla High","Yes","","88430",1]

{"sheet":"Subgrants","index":7,"n_rows":477,"n_cols":6,"rows_kept":477,"cut":false,"hidden":true,"merged":[]}
["Grant No.","SponsorNo.","School District/Sponsor/Fiscal Agent","School Site/Award Recipient","SiteId","Round"]
[87790,201001,"Alsea SD 7J","Alsea Schools",15014,1]
[87808,401002,"Astoria SD","Astor Elementary",10010,1]
[87809,3001001,"Athena-Weston SD 29RJ","Athena Elementary",14206,1]
[87810,3001001,"Athena-Weston SD 29RJ","Weston Middle",11116,1]
[87811,102001,"Baker SD 5J","Baker Early Learning Center",16662,1]
[87812,102001,"Baker SD 5J","Brooklyn Elementary",10017,1]
[87813,102001,"Baker SD 5J","Eagle Cap",14855,1]
[87814,102001,"Baker SD 5J","Eastern Oregon Headstart  Baker Center",16879,1]
[87815,102001,"Baker SD 5J","South Baker Elementary",10022,1]
[87867,902001,"Bend LaPine SD","Bear Creek Elementary",10036,1]
[87875,902001,"Bend LaPine SD","Elk Meadow Elementary",10038,1]
[87876,902001,"Bend LaPine SD","Ensworth Elementary",13454,1]
[87877,902001,"Bend LaPine SD","LaPine Elementary",10042,1]
[87878,902001,"Bend LaPine SD","LaPine High School ",10028,1]
[87879,902001,"Bend LaPine SD","LaPine Middle School",10033,1]
[87880,902001,"Bend LaPine SD","Rosland Elementary",14788,1]
[87881,2002002,"Bethel SD 52","Cascade Middle",10581,1]
[87882,2002002,"Bethel SD 52","Danebo Elem",10584,1]
[87883,2002002,"Bethel SD 52","Fairfield Elem",10585,1]
[87884,2002002,"Bethel SD 52","Malabon Elem",10587,1]
[87885,802001,"Brookings-Harbor SD 17","Azalea Middle",10389,1]
[87886,802001,"Brookings-Harbor SD 17","Brookings-Harbor High",10388,1]
[87887,802001,"Brookings-Harbor SD 17","Kalmiopsis Elem",10390,1]
[87888,1502001,"Butte Falls SD 91","Butte Falls Elementary Charter School",14200,1]
[87889,1502001,"Butte Falls SD 91","Butte Falls High School Charter School",10476,1]
[87890,2403005,"Cascade SD 005","Aumsville Elem",10814,1]
[87891,2403005,"Cascade SD 005","Cascade Opportunity Center",16024,1]
[87892,2603006,"Centennial SD 28J","Meadows Elem",10925,1]
[87893,2603006,"Centennial SD 28J","Patrick Lynch Elem",10926,1]
[87894,2603006,"Centennial SD 28J","Powell Butte Elem",10927,1]
[87895,2603006,"Centennial SD 28J","Parklane Elem",10930,1]
[87896,2603006,"Centennial SD 28J","Oliver Middle School",16822,1]
[87951,803001,"Central Curry SD 1","Riley Creek Elementary",10052,1]
[87952,1503002,"Central Point SD","Jewett Elementary",11627,1]
[87953,1503002,"Central Point SD","Richardson Elementary",11628,1]
[87954,1503002,"Central Point SD","Rogue Primary",16828,1]
[87955,2703001,"Central SD 13J","Ash Creek",12999,1]
[87956,2703001,"Central SD 13J","Central High",11089,1]
[87957,2703001,"Central SD 13J","Independence Elem",11092,1]
[87958,2703001,"Central SD 13J","Monmouth Elem",11093,1]
[87959,2703001,"Central SD 13J","Talmadge  Middle",11090,1]
[87998,503001,"Clatskanie SD 6J","Clatskanie Elem",10327,1]
[87999,603004,"Coos Bay SD  009","Eastside Elementary",10359,1]
[88000,603004,"Coos Bay SD  009","Harding Building",13503,1]
[88001,603004,"Coos Bay SD  009","Little Pirates Preschool",16516,1]
[88002,603004,"Coos Bay SD  009","Madison Elem",10363,1]
[88003,603004,"Coos Bay SD  009","Marshfield Junior High School",16464,1]
[88004,603004,"Coos Bay SD  009","Sunset Middle",10358,1]
[88005,603005,"Coquille SD","Lincoln Elementary",10057,1]
[88006,603005,"Coquille SD","Powers Elementary",16017,1]
[88007,603005,"Coquille SD","Powers High School",16016,1]
[88008,603005,"Coquille SD","Winter Lakes Elementary",16324,1]
[88009,603005,"Coquille SD","Winter Lakes High School",15023,1]
[88010,203003,"Corvallis SD 509J","Garfield Elem",10178,1]
[88011,203003,"Corvallis SD 509J","Letitia Carson Elementary",10185,1]
[88012,203003,"Corvallis SD 509J","Lincoln Elem",10183,1]
[88013,203003,"Corvallis SD 509J","Mt View Elem",10184,1]
[88014,703001,"Crook Co SD","Pioneer Alternative High School",16101,1]
[88015,2003009,"Crow-Applegate-Lorane","Applegate Elem",10597,1]
[88016,1603003,"Culver SD","Culver Elementary School",14202,1]
[88017,1603003,"Culver SD","Culver Middle School",14201,1]
[88018,2704001,"Dallas SD","Dallas High (Morrison Campus)",11095,1]
[88019,2704001,"Dallas SD","LaCreole Middle School",10066,1]
[88020,2704001,"Dallas SD","Lyle Elementary",10068,1]
[88021,2704001,"Dallas SD","Oakdale Heights Elementary",10069,1]
[88022,2604001,"David Douglas SD 40","Alice Ott Middle",10937,1]
[88023,2604001,"David Douglas SD 40","Cherry Park Elem",10939,1]
[88024,2604001,"David Douglas SD 40","Earl Boyles",12494,1]
[88025,2604001,"David Douglas SD 40","Floyd Light Middle",10938,1]
[88026,2604001,"David Douglas SD 40","Gilbert Heights Elem",10940,1]
[88027,2604001,"David Douglas SD 40","Gilbert Park Elem",10941,1]
[88028,2604001,"David Douglas SD 40","Lincoln Park Elem",10942,1]
[88029,2604001,"David Douglas SD 40","Menlo Park Elem",10943,1]
[88030,2604001,"David Douglas SD 40","Mill Park Elem",10944,1]
[88031,2604001,"David Douglas SD 40","Ron Russell Middle School",13660,1]
[88032,2604001,"David Douglas SD 40","Ventura Park Elem",10945,1]
[88801,2604001,"David Douglas SD 40","West Powellhurst Elem",10946,1]
[88033,1004001,"Days Creek SD 15","Days Creek Charter School",13793,1]
[88034,3604001,"Dayton SD 008","Dayton Grade School",11300,1]
[88035,3604001,"Dayton SD 008","Dayton High School",14193,1]
[88036,3604001,"Dayton SD 008","Dayton Jr High",11299,1]
[88037,1505001,"Eagle Point SD","Lower Table Rock Elementary",11617,1]
[88038,1505001,"Eagle Point SD","Shady Cove Elem",11618,1]
[88039,1505001,"Eagle Point SD","Upper Table Rock Elementary",11620,1]
[88040,1505001,"Eagle Point SD","URCEO - At-Risk",15285,1]
[88041,1505001,"Eagle Point SD","White Mountain Middle Sch",13133,1]
[88042,2005005,"Eugene SD 4J","Awbrey Park Elem",10615,1]
[88043,2005005,"Eugene SD 4J","Chavez",13502,1]
[88044,2005005,"Eugene SD 4J","Colin Kelly Middle",10606,1]
[88045,2005005,"Eugene SD 4J","Education Options East",10650,1]
[88046,2005005,"Eugene SD 4J","Family School",10645,1]
[88047,2005005,"Eugene SD 4J","Fox Hollow School",15826,1]
[88048,2005005,"Eugene SD 4J","Holt Elementary School",13649,1]
[88049,2005005,"Eugene SD 4J","Howard Elem",10627,1]
[88050,2005005,"Eugene SD 4J","McCornack Elem",10629,1]
[88051,2005005,"Eugene SD 4J","North Eugene High",10602,1]
[88052,2005005,"Eugene SD 4J","River Road Elem",10631,1]
[88053,2005005,"Eugene SD 4J","Spring Creek Elem",10633,1]
[88054,2005005,"Eugene SD 4J","Willagillespie Elem",10638,1]
[88055,2706001,"Falls City SD 57","Fall City Elem",11097,1]
[88056,2706001,"Falls City SD 57","Fall City High",11096,1]
[88057,3406001,"Forest Grove SD 15","CALC-Community Alternative Learning Center Name changed to Tuality Plains High School",15529,1]
[88058,3406001,"Forest Grove SD 15","Cornelius Elem",11233,1]
[88059,3406001,"Forest Grove SD 15","Echo Shaw Elem",11235,1]
[88060,3406001,"Forest Grove SD 15","Fern Hill Elementary",13283,1]
[88061,3406001,"Forest Grove SD 15","Joseph Gale Elem",11238,1]
[88062,3406001,"Forest Grove SD 15","Neil Armstrong Middle",11232,1]
[88063,3406001,"Forest Grove SD 15","Oak Grove Academy",15531,1]
[88064,3406001,"Forest Grove SD 15","Tom McCall Upper Elem",11239,1]
[88065,2407001,"Gervais SD","Early Learning Center",15653,1]
[88066,2407001,"Gervais SD","Gervais Elementary",15276,1]
[88067,2407001,"Gervais SD","Gervais High School",10073,1]
[88068,2407001,"Gervais SD","Gervais Middle School",10076,1]
[88069,307001,"Gladstone SD 115","Gladstone Center for Children and Families (GCCF)",14405,1]
[88070,1007001,"Glendale SD 77","Glendale Elem",10413,1]
[88071,1707001,"Grants Pass SD","Allen Dale Elementary",10090,1]
[88072,1707001,"Grants Pass SD","Gladiola High School",16866,1]
[88073,1707001,"Grants Pass SD","Lincoln Elementary",10092,1]
[88074,1707001,"Grants Pass SD","Parkside Elementary",10093,1]
[88075,1707001,"Grants Pass SD","Riverside Elementary",10095,1]
[88076,2207001,"Greater Albany SD 8J","Albany Options",12512,1]
[88077,2207001,"Greater Albany SD 8J","Calapooia Middle",10741,1]
[88078,2207001,"Greater Albany SD 8J","Central Elem",10744,1]
[88079,2207001,"Greater Albany SD 8J","Lafayette Elem",10746,1]
[88080,2207001,"Greater Albany SD 8J","Memorial Middle",10742,1]
[88081,2207001,"Greater Albany SD 8J","Oak Elem",10749,1]
[88082,2207001,"Greater Albany SD 8J","Periwinkle Elemenetary School",10750,1]
[88083,2207001,"Greater Albany SD 8J","South Albany High",10739,1]
[88084,2207001,"Greater Albany SD 8J","South Shore Elem",10751,1]
[88085,2207001,"Greater Albany SD 8J","Sunrise Elem",10752,1]
[88086,2207001,"Greater Albany SD 8J","Takena Elem",10753,1]
[88087,2207001,"Greater Albany SD 8J","Tangent Elem",10754,1]
[88088,2207001,"Greater Albany SD 8J","Waverly Elem",10755,1]
[88089,2607003,"Gresham-Barlow SD 10J","Center for Advance Learning",13850,1]
[88090,2607003,"Gresham-Barlow SD 10J","Clear Creek Middle",10949,1]
[88091,2607003,"Gresham-Barlow SD 10J","East Gresham Elem",10955,1]
[88092,2607003,"Gresham-Barlow SD 10J","Hall Elem",10957,1]
[88093,2607003,"Gresham-Barlow SD 10J","Highland Elem",10958,1]
[88094,2607003,"Gresham-Barlow SD 10J","North Gresham Elem",10961,1]
[88095,2208001,"Harrisburg SD","Harrisburg Elementary",10103,1]
[88096,3408001,"Hillsboro SD 1J","Butternut Creek Elem",11251,1]
[88097,3408001,"Hillsboro SD 1J","Eastwood Elem",11253,1]
[88098,3408001,"Hillsboro SD 1J","Free Orchards Elementary",14268,1]
[88099,3408001,"Hillsboro SD 1J","Groner Elem",11255,1]
[88100,3408001,"Hillsboro SD 1J","Hillsboro High",11245,1]
[88101,3408001,"Hillsboro SD 1J","Lincoln Street Elementary",14267,1]
[88102,3408001,"Hillsboro SD 1J","Mooberry Elem",11261,1]
[88103,3408001,"Hillsboro SD 1J","Oak Street Campus",11647,1]
[88104,3408001,"Hillsboro SD 1J","Reedville Elem",11264,1]
[88105,3408001,"Hillsboro SD 1J","South Meadows Middle School",14529,1]
[88106,3408001,"Hillsboro SD 1J","W L Henry Elem",11266,1]
[88107,3408001,"Hillsboro SD 1J","W V McKinney Elem",11267,1]
[88108,3408001,"Hillsboro SD 1J","West Union Elem",11268,1]
[88109,3408001,"Hillsboro SD 1J","Witch Hazel Elem",11269,1]
[88110,1408001,"Hood River SD","Cascade Locks School",10111,1]
[88111,1408001,"Hood River SD","Mid Valley Elementary",10113,1]
[88112,1408001,"Hood River SD","Parkdale Elementary",10114,1]
[88113,1408001,"Hood River SD","Wy'East Middle School",10109,1]
[88114,108001,"Huntington SD","Huntington School",10118,1]
[88115,1610001,"Jefferson Co SD 509","Buff Elementary",13578,1]
[88116,1610001,"Jefferson Co SD 509","Jefferson County Middle",10525,1]
[88117,1610001,"Jefferson Co SD 509","Madras High",10524,1]
[88118,1610001,"Jefferson Co SD 509","Warm Springs K-8 Academy",15369,1]
[88119,2410001,"Jefferson SD 14J","Jefferson Elem",10822,1]
[88120,3210001,"Joseph SD 6","Imnaha Elem",11172,1]
[88121,1811002,"Klamath Co SD","Bonanza Elem",10557,1]
[88122,1811002,"Klamath Co SD","Bonanza High",10549,1]
[88123,1811002,"Klamath Co SD","Brixner Jr High",10554,1]
[88124,1811002,"Klamath Co SD","Chiloquin Elem",10558,1]
[88125,1811002,"Klamath Co SD","Chiloquin High",10550,1]
[88126,1811002,"Klamath Co SD","Falcon Heights Henley HS",14807,1]
[88127,1811002,"Klamath Co SD","Ferguson Elem",10560,1]
[88128,1811002,"Klamath Co SD","Gearhart Elem",10561,1]
[88129,1811002,"Klamath Co SD","Gilchrist Elem",10562,1]
[88130,1811002,"Klamath Co SD","Gilchrist High",10551,1]
[88131,1811002,"Klamath Co SD","Lost River High",10553,1]
[88132,1811002,"Klamath Co SD","Malin Elem",10565,1]
[88133,1811002,"Klamath Co SD","Merrill Elem",10568,1]
[88134,1811002,"Klamath Co SD","Peterson Elem",10566,1]
[88135,1811002,"Klamath Co SD","Shasta Elem",10567,1]
[88136,1811002,"Klamath Co SD","Stearns Elem",10569,1]
[88137,1811005,"Klamath Falls SD","Joseph Conger Elementary",10125,1]
[88138,1811005,"Klamath Falls SD","Klamath Learning Center",15677,1]
[88139,1811005,"Klamath Falls SD","Klamath Union High School",10121,1]
[88140,1811005,"Klamath Falls SD","Mills Elementary",10126,1]
[88141,1811005,"Klamath Falls SD","Pelican Elementary",10127,1]
[88142,1811005,"Klamath Falls SD","Ponderosa Jr High",10123,1]
[88143,3112001,"LaGrande SD","Greenwood Elem",11160,1]
[88144,1912001,"Lakeview SD","Daly Middle",10572,1]
[88145,1912001,"Lakeview SD","Fremont/Hay Elem",10573,1]
[88146,1912001,"Lakeview SD","Lakeview Sr High School",14203,1]
[88147,2212001,"Lebanon Community SD 9","Cascades School",10764,1]
[88148,2212001,"Lebanon Community SD 9","Green Acres Elem",10767,1]
[88149,2212001,"Lebanon Community SD 9","Hamilton Creek Elem",10768,1]
[88150,2212001,"Lebanon Community SD 9","Lacomb Elem",10769,1]
[88151,2212001,"Lebanon Community SD 9","Lebanon High",10759,1]
[88152,2212001,"Lebanon Community SD 9","Pioneer School",13031,1]
[88153,2212001,"Lebanon Community SD 9","Riverview School",13030,1]
[88154,2212001,"Lebanon Community SD 9","Seven Oak Middle",10762,1]
[88155,2112001,"Lincoln Co SD","Crestview Heights",10734,1]
[88156,2112001,"Lincoln Co SD","Eddyville Charter School",10728,1]
[88157,2112001,"Lincoln Co SD","Newport High",10717,1]
[88158,2112001,"Lincoln Co SD","Newport Middle School",10722,1]
[88159,2112001,"Lincoln Co SD","Oceanlake Elem",10730,1]
[88160,2112001,"Lincoln Co SD","Sam Case Elem",10731,1]
[88161,2112001,"Lincoln Co SD","Taft Elem",10733,1]
[88162,2112001,"Lincoln Co SD","Taft High",10718,1]
[88163,2112001,"Lincoln Co SD","Toledo Elementary",10724,1]
[88164,2112001,"Lincoln Co SD","Toledo High",10719,1]
[88165,2112001,"Lincoln Co SD","Waldport High",10720,1]
[88166,2112001,"Lincoln Co SD","Yaquina View Elementary",15633,1]
[88167,1212001,"Long Creek SD 17","Long Creek School",10461,1]
[88168,2012005,"Lowell SD 71","Lundy Elem",10662,1]
[88169,2012005,"Lowell SD 71","Lowell High",10661,1]
[88170,1513002,"Madrone Trail Public Charter School","Madrone Trail Public Charter School",16874,1]
[88171,2023001,"Mapleton SD 32","Mapleton Jr/Sr High",10664,1]
[88172,2023001,"Mapleton SD 32","Mapleton Elementary",14211,1]
[88173,2023002,"\tMarcola SD 79J","Marcola Elem",10667,1]
[88174,2023003,"McKenzie SD 68","MRCS K-12",10669,1]
[88175,3613001,"McMinnville SD 40","F Patton Middle",11303,1]
[88176,3613001,"McMinnville SD 40","Grandhaven",11677,1]
[88177,3613001,"McMinnville SD 40","McMinnville High",11301,1]
[88178,3613001,"McMinnville SD 40","Newby Elem",11308,1]
[88179,3613001,"McMinnville SD 40","Sue Buel Elementary",14226,1]
[88180,3613001,"McMinnville SD 40","Wascher Elem",11309,1]
[88181,3613001,"McMinnville SD 40","Willamette Elementary",11305,1]
[88182,1513001,"Medford SD 549","Griffin Creek Elem",10499,1]
[88183,1513001,"Medford SD 549","Hedrick Middle",10496,1]
[88184,1513001,"Medford SD 549","Howard Elem",10501,1]
[88185,1513001,"Medford SD 549","Innovation Academy",14407,1]
[88186,1513001,"Medford SD 549","Jackson Elementary",10502,1]
[88187,1513001,"Medford SD 549","Jefferson Elem",10504,1]
[88188,1513001,"Medford SD 549","Kennedy Elem",10505,1]
[88189,1513001,"Medford SD 549","McLoughlin Middle",10497,1]
[88190,1513001,"Medford SD 549","North Medford High",10494,1]
[88191,1513001,"Medford SD 549","Oakdale Middle School",16894,1]
[88192,1513001,"Medford SD 549","Oak Grove",10507,1]
[88193,1513001,"Medford SD 549","Roosevelt Elem",10508,1]
[88194,1513001,"Medford SD 549","Ruch Elem",10509,1]
[88195,1513001,"Medford SD 549","South Medford High",10495,1]
[88196,1513001,"Medford SD 549","Washington Elem",10510,1]
[88197,1513001,"Medford SD 549","Wilson Elem",10511,1]
[88198,3013001,"Milton-Freewater SD 7","Central Middle",11129,1]
[88199,3013001,"Milton-Freewater SD 7","Gib Olinger Elementary",16086,1]
[88200,1213001,"Monument SD 8","Monument School",10463,1]
[88201,2513001,"Morrow Co SD","A C Houghton Elem",10918,1]
[88202,2513001,"Morrow Co SD","Irrigon Elementary",13374,1]
[88203,2513001,"Morrow Co SD","Sam Boardman Elem",10921,1]
[88204,2513001,"Morrow Co SD","Windy River Elementary",13373,1]
[88205,3313002,"Mosier Community School","Mosier Community School",15896,1]
[88206,2413003,"Mt. Angel SD 91","St Mary's Public School",10825,1]
[88207,2513001,"Multnomah ESD","Arata Creek",12284,1]
[88208,2513001,"Multnomah ESD","Burlingame Creek",12828,1]
[88209,2513001,"Multnomah ESD","Wheatley School",14027,1]
[88210,613002,"Myrtle Point SD 41","Myrtle Crest School",10371,1]
[88211,2914001,"Neah-Kah-Nie SD 56","Garibaldi Elem",11104,1]
[88212,2914001,"Neah-Kah-Nie SD 56","Neah-Kah-Nie High School",14213,1]
[88213,2914001,"Neah-Kah-Nie SD 56","Nehalem Elem",11105,1]
[88214,2914002,"Nestucca Valley SD 101J","Nestucca   K8/Nestucca  Valley Elementary - Previous name",11108,1]
[88215,2914002,"Nestucca Valley SD 101J","Nestucca High",11106,1]
[88216,2014003,"Network Charter School","Network Charter School",13580,1]
[88217,3614001,"Newberg SD 29J","Catalyst High School",15393,1]
[88218,3614001,"Newberg SD 29J","Edwards Elem",11315,1]
[88219,614001,"North Bend SD 13","Hillcrest Elem",10377,1]
[88220,614001,"North Bend SD 13","North Bay Elem",10378,1]
[88221,614001,"North Bend SD 13","North Bend Middle School",10375,1]
[88222,614001,"North Bend SD 13","North Bend Sr High",10374,1]
[88223,314001,"North Clackamas SD 12","Linwood Elem",10257,1]
[88224,314001,"North Clackamas SD 12","Oak Grove Elem",10262,1]
[88225,314001,"North Clackamas SD 12","Whitcomb Elem",10267,1]
[88226,314001,"North Clackamas SD 12","New Urban High School",13196,1]
[88227,1014001,"North Douglas SD 22","North Douglas Elem. Cafeteria",10421,1]
[88228,1914001,"North Lake SD 14","North Lake School",10577,1]
[88229,2414003,"North Santiam SD 29","Stayton Elem",10834,1]
[88230,2414003,"North Santiam SD 29","Stayton Middle",10830,1]
[88231,3314003,"North Wasco Co. SD","Chenowith Elem",13353,1]
[88232,3314003,"North Wasco Co. SD","Colonel Wright Elem",13357,1]
[88233,3314003,"North Wasco Co. SD","Dry Hollow Elem",13358,1]
[88234,3314003,"North Wasco Co. SD","The Dalles Middle",13360,1]
[88235,3314003,"North Wasco Co. SD","Wahtonka Campus",15120,1]
[88236,2314001,"Nyssa SD 26","Nyssa Elem",10800,1]
[88237,2314001,"Nyssa SD 26","Nyssa Early Head Start Program",15720,1]
[88238,2314001,"Nyssa SD 26","Nyssa High",10798,1]
[88239,1015001,"Oakland SD","Lincoln Middle School (Oakland MS)",11612,1]
[88240,1015001,"Oakland SD","Oakland Elementary",14197,1]
[88241,1015001,"Oakland SD","Oakland High",10422,1]
[88242,2015001,"Oakridge SD 76","Oakridge Elem",10672,1]
[88243,2015001,"Oakridge SD 76","Oakridge Jr/Sr High",13799,1]
[88244,2315001,"Ontario SD","Aiken Elem",10804,1]
[88245,2315001,"Ontario SD","Alameda Elem",10803,1]
[88246,2315001,"Ontario SD","May Roberts Elem",10806,1]
[88247,2315001,"Ontario SD","Ontario Middle",10802,1]
[88248,2315001,"Ontario SD","Ontario Sr High",10801,1]
[88249,315002,"Oregon City SD 62","Bridges to Independence",17023,1]
[88250,315002,"Oregon City SD 62","Jackson Campus - Alt Ed Eastham",15697,1]
[88251,315002,"Oregon City SD 62","Oregon Service Learning Academy",10288,1]
[88252,2415003,"Oregon School for the Deaf","Oregon School for the Deaf",11385,1]
[88253,2616002,"Parkrose SD 3","Prescott Elem",10967,1]
[88254,2616002,"Parkrose SD 3","Shaver Elem",10970,1]
[88255,1516001,"Phoenix-Talent SD","Armadillo Technical Institute",13385,1]
[88256,1516001,"Phoenix-Talent SD","Orchard Hill Elem",10515,1]
[88257,1516001,"Phoenix-Talent SD","Phoenix Elem",10516,1]
[88258,1516001,"Phoenix-Talent SD","Talent Middle",10514,1]
[88259,3016002,"Pilot Rock SD 2","Pilot Rock Elem",11142,1]
[88260,816001,"Port Orford-Langlois SD","Driftwood Elem",10386,1]
[88261,2616011,"Portland SD","Boise/Eliot Elem",11009,1]
[88262,2616011,"Portland SD","Cesar Chavez",10995,1]
[88263,2616011,"Portland SD","Chapman Elem",11015,1]
[88264,2616011,"Portland SD","Clarendon Early Learning Academy",16456,1]
[88265,2616011,"Portland SD","Clark Elem",11018,1]
[88266,2616011,"Portland SD","CTC NE",15515,1]
[88267,2616011,"Portland SD","CTC SE",15514,1]
[88268,2616011,"Portland SD","Faubion Elem",11022,1]
[88269,2616011,"Portland SD","George Middle",10986,1]
[88270,2616011,"Portland SD","Grout Elem",11025,1]
[88271,2616011,"Portland SD","Harrison Park Elem",14257,1]
[88272,2616011,"Portland SD","James John Elementary",11031,1]
[88273,2616011,"Portland SD","Jefferson High",10975,1]
[88274,2616011,"Portland SD","Kellogg Middle",10991,1]
[88275,2616011,"Portland SD","Kelly Elementary",11032,1]
[88276,2616011,"Portland SD","Lane Middle",10992,1]
[88277,2616011,"Portland SD","Lee Elem",11036,1]
[88278,2616011,"Portland SD","Lent Elem",11037,1]
[88279,2616011,"Portland SD","Martin Luther King Jr School",11034,1]
[88280,2616011,"Portland SD","Marysville Elem",11042,1]
[88281,2616011,"Portland SD","Pioneer Programs",13801,1]
[88282,2616011,"Portland SD","Rigler Elem",11047,1]
[88283,2616011,"Portland SD","Roosevelt High",10980,1]
[88284,2616011,"Portland SD","Rosa Parks Elem",13804,1]
[88285,2616011,"Portland SD","Roseway Heights Middle School",10988,1]
[88286,2616011,"Portland SD","Sacajawea Head Start",16074,1]
[88287,2616011,"Portland SD","Scott Elem",11050,1]
[88288,2616011,"Portland SD","Sitton Elementary",11051,1]
[88289,2616011,"Portland SD","Vestal Elem",11057,1]
[88290,2616011,"Portland SD","Whitman Elem",11059,1]
[88291,2616011,"Portland SD","Woodlawn Elementary",11061,1]
[88292,2616011,"Portland SD","Woodmere Elem",11064,1]
[88293,2616011,"Portland SD","Youth Progress Association",16035,1]
[88294,1516002,"Prospect SD 59","Prospect School",10519,1]
[88295,518001,"Rainier SD 13","Hudson Park Elementary",14196,1]
[88296,518001,"Rainier SD 13","Rainier Jr/Sr High School",10330,1]
[88297,1018001,"Reedsport SD 105","Reedsport Community Charter School",10424,1]
[88298,1018001,"Reedsport SD 105","Highland Elem",10426,1]
[88299,2618002,"Reynolds SD 7","Alder Elem",11077,1]
[88300,2618002,"Reynolds SD 7","Davis Elem",11078,1]
[88301,2618002,"Reynolds SD 7","Fairview Elementary",11079,1]
[88302,2618002,"Reynolds SD 7","Glenfair Elem",11080,1]
[88303,2618002,"Reynolds SD 7","Hartley Elem",11081,1]
[88304,2618002,"Reynolds SD 7","Hauton B Lee Middle",11074,1]
[88305,2618002,"Reynolds SD 7","Margaret Scott Elem",11082,1]
[88306,2618002,"Reynolds SD 7","Reynolds High",11073,1]
[88307,2618002,"Reynolds SD 7","Reynolds Learning Academy",13214,1]
[88308,2618002,"Reynolds SD 7","Reynolds Middle",11075,1]
[88309,2618002,"Reynolds SD 7","Rockwood Prepatory Academy",14801,1]
[88310,2618002,"Reynolds SD 7","Salish Ponds Elementary",13213,1]
[88311,2618002,"Reynolds SD 7","Wilkes Elem",11085,1]
[88312,2618002,"Reynolds SD 7","Woodland Elem",11086,1]
[88313,1018002,"Riddle SD 70","Riddle Elem",10428,1]
[88314,1018004,"Roseburg SD 4","Eastwood Elem",10432,1]
[88315,1018004,"Roseburg SD 4","Fir Grove Elem",10433,1]
[88316,1018004,"Roseburg SD 4","Fullerton IV Elem",10434,1]
[88317,1018004,"Roseburg SD 4","Green Elementary",10439,1]
[88318,1018004,"Roseburg SD 4","Sunnyslope Elementary",10440,1]
[88319,1018004,"Roseburg SD 4","Winchester Elem",10438,1]
[88320,2419004,"Salem Keizer SD 24J","Auburn Elem",10850,1]
[88321,2419004,"Salem Keizer SD 24J","Baker Early Childhood Center",16856,1]
[88322,2419004,"Salem Keizer SD 24J","Bethel Early Child Learning Center",16854,1]
[88323,2419004,"Salem Keizer SD 24J","BIC",15674,1]
[88324,2419004,"Salem Keizer SD 24J","BIC 2",16855,1]
[88325,2419004,"Salem Keizer SD 24J","Bush Elem",10854,1]
[88326,2419004,"Salem Keizer SD 24J","Chavez Elementary",15153,1]
[88327,2419004,"Salem Keizer SD 24J","Claggett Creek Secondary",12791,1]
[88328,2419004,"Salem Keizer SD 24J","Downtown Learning Center",13679,1]
[88329,2419004,"Salem Keizer SD 24J","Englewood Elem",10859,1]
[88330,2419004,"Salem Keizer SD 24J","ESCC (East Salem Community Center)",15617,1]
[88331,2419004,"Salem Keizer SD 24J","Eyre Elementary",10873,1]
[88332,2419004,"Salem Keizer SD 24J","Four Corners Elem",10861,1]
[88333,2419004,"Salem Keizer SD 24J","Hallman Elementary",12788,1]
[88334,2419004,"Salem Keizer SD 24J","Harritt Elementary",13116,1]
[88335,2419004,"Salem Keizer SD 24J","Hayesville Elem",10865,1]
[88336,2419004,"Salem Keizer SD 24J","Highland",12866,1]
[88337,2419004,"Salem Keizer SD 24J","Hoover Elem",10868,1]
[88338,2419004,"Salem Keizer SD 24J","Houck Middle",10842,1]
[88339,2419004,"Salem Keizer SD 24J","Keizer Elem",10869,1]
[88340,2419004,"Salem Keizer SD 24J","Kennedy Elem",10870,1]
[88341,2419004,"Salem Keizer SD 24J","Lamb Elementary",12787,1]
[88342,2419004,"Salem Keizer SD 24J","Lee Elementary",12997,1]
[88343,2419004,"Salem Keizer SD 24J","McKay High",10837,1]
[88344,2419004,"Salem Keizer SD 24J","Miller Elem",12515,1]
[88345,2419004,"Salem Keizer SD 24J","North Salem High",10838,1]
[88346,2419004,"Salem Keizer SD 24J","Parrish Middle",10845,1]
[88347,2419004,"Salem Keizer SD 24J","Richmond Elem",10880,1]
[88348,2419004,"Salem Keizer SD 24J","Roberts High School",13626,1]
[88349,2419004,"Salem Keizer SD 24J","Roberts High School At Chemekata",16029,1]
[88350,2419004,"Salem Keizer SD 24J","Roberts Middle School",14834,1]
[88351,2419004,"Salem Keizer SD 24J","Scott Elem",10884,1]
[88352,2419004,"Salem Keizer SD 24J","Stephens Middle",10846,1]
[88353,2419004,"Salem Keizer SD 24J","Swegle Elem",10886,1]
[88354,2419004,"Salem Keizer SD 24J","Waldo Middle",10847,1]
[88355,2419004,"Salem Keizer SD 24J","Washington Elem",10887,1]
[88356,2419004,"Salem Keizer SD 24J","Weddle Elementary",12790,1]
[88357,2419004,"Salem Keizer SD 24J","Wright Elementary",10860,1]
[88358,2419004,"Salem Keizer SD 24J","Yoshikai Elem",10888,1]
[88359,519001,"Scappoose SD","Head Start",16144,1]
[88360,3619001,"Sheridan SD 48J","Faulconer -Chapman School",13460,1]
[88361,3619001,"Sheridan SD 48J","Sheridan AllPrep Children's Center",17028,1]
[88362,2419006,"Silver Falls SD 4","Preschool Promise",16735,1]
[88363,2419006,"Silver Falls SD 4","Sequoia Falls Academy",16885,1]
[88364,2019002,"Siuslaw SD 97J","Siuslaw High",10678,1]
[88365,2019002,"Siuslaw SD 97J","Siuslaw West",17045,1]
[89443,2019002,"Siuslaw SD 97J","Siuslaw Elem",10680,1]
[88366,1019001,"South Umpqua SD 19","Coffenberry Middle",10442,1]
[88367,1019001,"South Umpqua SD 19","South Umpqua High",10441,1]
[88368,1019001,"South Umpqua SD 19","Tri City Elem",10444,1]
[88369,1019001,"South Umpqua SD 19","Myrtle Creek Elem",10443,1]
[88371,3319001,"South Wasco Co SD","South Wasco County High School",11183,1]
[88370,3319001,"South Wasco Co SD","Maupin Elem",11184,1]
[88372,2019007,"Springfield SD 19","Briggs Middle",10695,1]
[88373,2019007,"Springfield SD 19","Centennial Elem",10701,1]
[88374,2019007,"Springfield SD 19","Douglas Gardens Elem",10702,1]
[88375,2019007,"Springfield SD 19","Elizabeth Page Elem",10703,1]
[88376,2019007,"Springfield SD 19","Hamlin Middle",10696,1]
[88377,2019007,"Springfield SD 19","Guy Lee Elem",10705,1]
[88378,2019007,"Springfield SD 19","Maple Elem",10706,1]
[88379,2019007,"Springfield SD 19","Mt Vernon Elem",10709,1]
[88380,2019007,"Springfield SD 19","Riverbend Elem",10711,1]
[88381,2019007,"Springfield SD 19","Gateways High School",14377,1]
[88382,2019007,"Springfield SD 19","Two Rivers-Dos Rios Elementary",15105,1]
[88383,2019007,"Springfield SD 19","Willamette Leadership Academy",15162,1]
[88384,519003,"St. Helens SD 502","Columbia City School",10343,1]
[88385,519003,"St. Helens SD 502","Lewis & Clark Elem",10344,1]
[88386,519003,"St. Helens SD 502","McBride Elem",10346,1]
[88387,519003,"St. Helens SD 502","Plymouth High School",10348,1]
[88388,519003,"St. Helens SD 502","St Helens Middle",10342,1]
[88389,3019001,"Stanfield SD 61","Stanfield Elementary School",11144,1]
[88390,3019001,"Stanfield SD 61","Stanfield Secondary",11143,1]
[88391,1019003,"Sutherlin SD 130","East Sutherlin Primary",10448,1]
[88392,1019003,"Sutherlin SD 130","West Sutherlin Intermed",10449,1]
[88393,2219004,"Sweet Home SD 55","Foster Elem",10785,1]
[88394,2219004,"Sweet Home SD 55","Hawthorne Elem",10786,1]
[88395,2219004,"Sweet Home SD 55","Sweet Home Jr High",10783,1]
[88396,2219004,"Sweet Home SD 55","Oak Heights Elem",10788,1]
[88397,1720001,"Three Rivers SD","Applegate Elem",10537,1]
[88398,1720001,"Three Rivers SD","Evergreen Elem",10538,1]
[88399,1720001,"Three Rivers SD","Fruitdale Elem",10539,1]
[88400,1720001,"Three Rivers SD","Fort Vannoy Elem",10540,1]
[88401,1720001,"Three Rivers SD","Illinois Valley High",10533,1]
[88402,1720001,"Three Rivers SD","Lincoln Savage Middle",10535,1]
[88403,1720001,"Three Rivers SD","Lorna Byrne Middle",10536,1]
[88404,1720001,"Three Rivers SD","Manzanita Elementary",13727,1]
[88405,1720001,"Three Rivers SD","Williams Elem",10546,1]
[88406,1720001,"Three Rivers SD","Madrona Elem",10542,1]
[88407,1720001,"Three Rivers SD","SOSA-Southern Oregon Success Academy",16706,1]
[88408,3420001,"Tigard-Tualatin SD 23J","Creekside Community High School",15619,1]
[88409,3420001,"Tigard-Tualatin SD 23J","James Templeton Elem",11285,1]
[88410,3420001,"Tigard-Tualatin SD 23J","Lifeworks",16877,1]
[88411,3021002,"Umatilla SD 6","Clara Brownell Middle",11148,1]
[88412,3021002,"Umatilla SD 6","McNary Heights Elem",11149,1]
[88413,2322001,"Vale SD 84","Vale Elementary",14204,1]
[88414,522001,"Vernonia SD 47J","Vernonia Elementary",10352,1]
[88415,522001,"Vernonia SD 47J","Vernonia Middle School",13645,1]
[88416,3623002,"Willamina SD 30J","Willamina Elem",11326,1]
[88417,1023001,"Winston-Dillard SD 116","McGovern Elem",10453,1]
[88418,1023001,"Winston-Dillard SD 116","Brockway Elementary",13049,1]
[88419,1023001,"Winston-Dillard SD 116","Winston Middle",10451,1]
[88420,1023001,"Winston-Dillard SD 116","Dillard Alternative School",15345,1]
[88421,2423006,"Woodburn SD 103","French Prairie Middle",10908,1]
[88422,2423006,"Woodburn SD 103","Valor Middle",10909,1]
[88423,2423006,"Woodburn SD 103","Heritage Elem",10910,1]
[88424,2423006,"Woodburn SD 103","Lincoln Elem",10911,1]
[88425,2423006,"Woodburn SD 103","Nelie Muir Elem",10912,1]
[88426,2423006,"Woodburn SD 103","Washington Elem",10913,1]
[88427,2423006,"Woodburn SD 103","Success",13840,1]
[88428,2423006,"Woodburn SD 103","Chemekata High School",14006,1]
[88429,1025001,"Yoncalla SD 32","Yoncalla Elem",10456,1]
[88430,1025001,"Yoncalla SD 32","Yoncalla High",10455,1]